Workbook

Sheet Contents
A7: Gazprom in figures 2016. Factbook.
B8: Preface
B9: Gazprom in Russian and global energy industry
B10: Financial results
B11: Macroeconomic data
B12: Market data
B13: Exploration and production in Russia
A14: + | B14: Reserves
B15: Hydrocarbon reserves of Gazprom Group in Russia
B16: Replacement ratio of Gazprom group’s hydrocarbon reserves, Russian classification of reserves
B17: Years of Gazprom Group’s hydrocarbon reserves, Russian classification of reserves
B18: Natural gas reserves of Gazprom Group in Russia, PRMS standards
B19: Gas condensate reserves of Gazprom Group in Russia, PRMS classification
B20: Oil reserves of Gazprom Group in Russia, PRMS standards
B21: Hydrocarbon reserves (Russian classification of reserves) of Gazprom Group in Russia
B22: Hydrocarbon reserves (Russian classification of reserves) of the associated and jointly controlled companies in Russia attributable to the share of Gazprom Group
B23: Change in Gazprom Group’s hydrocarbon reserves (Russian classification of reserves) in Russia, 2013–2016
A24: + | B24: Licenses
B25: License areas set out by federal districts of the Russian Federation
B26: Licenses for the main hydrocarbon fields
A27: + | B27: Production
B28: Hydrocarbon production of Gazprom Group in Russia
B29: Daily average hydrocarbon production of Gazprom Group in Russia
B30: Gazprom Group’s hydrocarbon production in Russia
B31: Hydrocarbon production of Gazprom Group in Russia set out by Federal Districts
B32: Useful life of APG by Gazprom Group in Russia
B33: Hydrocarbon production of the associated and jointly controlled companies in Russia attributable to the share of Gazprom Group
A34: + | B34: Geological exploration, production drilling and production capacity
B35: Key figures of Gazprom Group’s geological exploration activities
B36: Key figures of geological exploration activities of companies, investments in which are classified as joint operations
B37: Gazprom Group’s production drilling
B38: Production drilling of companies, investments in which are classified as joint operations
B39: Gazprom Group’s production capacity
B40: Production capacity of companies, investments in which are classified as joint operations
A41: + | B41: Promising fields
B42: Producing fields operated by Gazprom Group
B43: Fields explored by Gazprom Group
B44: Fields of joint ventures of Gazprom Group
A45: + | B45: Exploration and production abroad
B46: Key figures of Gazprom’s hydrocarbon geological exploration abroad
B47: Gazprom Group’s hydrocarbon production capacity abroad
B48: Gazprom Group oil and gas exploration drilling abroad
B49: Hydrocarbon production abroad, projects with participation of Gazprom Group
B50: International prospecting and exploration projects of Gazprom Group
B51: International prospecting and exploration projects of associated companies and joint ventures
A52: - | B52: Transportation and underground storage
A53: + | B53: Transportation
B54: Upgrade and overhaul of gas transportation system in Russia
B55: Major technical characteristics of Gazprom Group’s gas transportation assets in Russia
B56: Breakdown of Russian trunk pipelines by time of service
B57: Gas received into and distributed from Gazprom’s GTS in Russia
B58: Gas transportation volumes of Nord Stream and Blue Stream pipelines
B59: Major technical characteristics of gas transportation assets of Gazprom Group’s subsidiaries abroad
B60: Gazprom Group’s major gas transportation projects
A61: + | B61: Underground gas storage
B62: Gazprom’s UGSFs in Russia
B63: Gas storage in Russia
B64: Gazprom’s gas injection into and withdrawal from UGSFs abroad
B65: Main projects of development of underground storage of gas in Russia
B66: UGSFs with Gazprom Group participation abroad
B67: UGSF capacity used by OOO Gazprom Export according to leasing agreements
B68: Prospective UGSFs with Gazprom Group’s participation abroad
A69: + | B69: Hydrocarbon processing and gas and oil chemistry
B70: Volumes of Gazprom Group’s hydrocarbon processing
B71: Areas at utilization of some types of refined oil and gas products produced by Gazprom Group
B72: Major types of refined products produced by Gazprom Group
B73: Refined products produced by major Gazprom Group’s subsidiaries
B74: Hydrocarbon processing, gas chemical and petrochemical plants
B75: Major new hydrocarbon processing, gas chemical and petrochemical projects of Gazprom Group
B76: Gazprom Group’s projects for transportation of liquid hydrocarbons
A77: + | B77: Power and heat generation
B78: Electric power and heat generating capacity of Gazprom Group
B79: Electric power and heat generated by Gazprom Group
B80: Gazprom Group’s major projects in electric power generation
A81: - | B81: Marketing
A82: + | B82: Gas sales
B83: Natural gas sales volumes
B84: Average natural gas price
B85: Gazprom Group’s natural gas sales volumes
B86: Gazprom Groups’s natural gas sales volumes to foreign countries
B87: Gazprom’s share in domestic gas demand in Russia
B88: Regulated weighted average wholesale prices for natural gas in Russia
B89: Gazprom Group subsidiaries’ gas sales volumes to end-consumers in far abroad countries
B90: Gazprom Group’s LNG sales volumes
B91: Gazprom Group’s projects to build LNG regasification facilities
B92: Promising large-scale LNG projects with Gazprom Group’s participation
B93: Gas distribution and gasification in Russia
A94: + | B94: Sales of crude oil, gas condensate and refined products
B95: Oil and gas condensate sales revenue
B96: Gazprom Group’s oil and gas condensate sales volumes
B97: Refined products sales revenue
B98: Gazprom Group’s refined products sales volumes
B99: Gazprom Group’s sales volumes of refined products and petrochemical products
B100: Gazprom Group’s helium sales volumes
A101: + | B101: Sales of electricity, heat energy and gas transportation services
B102: Electricity and heat energy sales revenue
B103: Gas transportation sales revenue
B104: Sales volumes of gas transportation services to companies other than Gazprom Group’s companies
A105: + | B105: Environmental protection, energy saving, research and development
B106: Key indicators of Gazprom Group’s environmental impact in Russia
B107: Gazprom Group’s environmental costs in Russia
B108: Energy saving of PJSC Gazprom and its major subsidiaries
B109: Research and development works contracted by Gazprom Group
A110: - | B110: Personnel
A111: + | B111: Reference information
B112: Convertion table and conventions
B113: Calculation of financial ratios
B114: Glossary of terms and abbreviations
A115: +

Sheet Preface
A1: Preface
A2: This reference material is based on Gazprom in Figures 2012–2016 Factbook and compiled in a spreadsheet format. Gazprom in Figures 2012–2016 Factbook contains information and statistics prepared for the annual General Shareholders Meeting of PJSC Gazprom in 2017. The Factbook is based on PJSC Gazprom's corporate reports and information derived from Russian and foreign information publications.
A3: Figures in Gazprom Group’s consolidated financial statements prepared in accordance with IFRS (“IFRS consolidated financial statements”) are supplemented with data for 2010, while production and other performance data are supplemented with comparable data from PJSC Gazprom’s Factbooks, Annual Reports, and Management Accounts for 2010 and previous periods.
A4: The terms “PJSC Gazprom” and the Company as used in this Factbook refers to the parent company of Gazprom Group, i.e. to Public Joint Stock Company Gazprom (until 17 June 2015 – Open Joint Stock Company Gazprom, JSC Gazprom).
A5: Similarly, the terms “Gazprom Neft Group” and “Gazprom Neft” refer to PAO Gazprom neft and its subsidiaries, “Gazprom energoholding” refers to OOO Gazprom energoholding and its subsidiaries, “Gazprom neftekhim Salavat” refers to OAO Gazprom neftekhim Salavat and its subsidiaries.
A6: Gazprom's overall results as stated in the Factbook are recorded in compliance with the principles for preparing Gazprom Group's consolidated financial statements prepared under IFRS (hereafter, the “IFRS consolidated financial statements”) and/or for the whole of Gazprom Group companies included for the purposes of Gazprom Group's IFRS consolidated financial statements. In accordance with IFRS 11 Joint Arrangements, starting from 1 January 2012 the volumes of hydrocarbon reserves, production and processing of hydrocarbons provided in the Factbook include share in the results of entities where Gazprom has investments classified as joint operations. For the previous periods, the results of the respective entities were excluded from the results of Gazprom Group and were provided separately as results of associated and jointly controlled companies attributable to the share of the Group.
A7: Some figures of PJSC Gazprom and its subsidiaries were derived from management accounts. Figures calculated using these methods may differ due to differences in methodologies for preparing consolidated financial statements and maintaining management accounts.
A8: Figures representing barrels of oil equivalent (boe) were calculated using the specified conversion ratios. The Group maintains its management accounts in metric units.
A9: The Group's financial results are derived from Gazprom Group’s IFRS consolidated financial statements. Gazprom Group’s accounting (financial) statements are expressed in Russian rubles. Equivalent amounts in USD and EUR were calculated at the specified exchange rates and do not represent the Group's financial statements data.
A11: Back to Contents

Sheet Gazprom globally
A1: Gazprom in Russian and global energy industry
B2: As at and for the year ended 31 December
B3: 2005 | C3: 2006 | D3: 2007 | E3: 2008 | F3: 2009 | G3: 2010 | H3: 2011 | I3: 2012 | J3: 2013 | K3: 2014 | L3: 2015 | M3: 2016
A4: Share in the world natural gas industry
A5: Gas reserves *,*** | B5: 0.166 | C5: 0.168 | D5: 0.165 | E5: 0.18 | F5: 0.18 | G5: 0.176 | H5: 0.183 | I5: 0.183 | J5: 0.166 | K5: 0.168 | L5: 0.169 | M5: 0.171
A6: Gas production *,*** | B6: =0.185 -> 0.185 | C6: =0.181 -> 0.181 | D6: =0.174 -> 0.174 | E6: 0.167 | F6: 0.145 | G6: 0.148 | H6: 0.145 | I6: 0.136 | J6: 0.135 | K6: 0.121 | L6: 0.112 | M6: 0.112
A7: Share in the Russian fuel and energy complex
A8: Russian natural gas reserves *** | B8: 0.609 | C8: 0.624 | D8: 0.621 | E8: 0.689 | F8: 0.698 | G8: 0.687 | H8: 0.718 | I8: 0.72 | J8: 0.723 | K8: 0.723 | L8: 0.716 | M8: 0.717
A9: Gas production **,*** | B9: 0.866 | C9: 0.847 | D9: 0.839 | E9: 0.827 | F9: 0.792 | G9: 0.781 | H9: 0.765 | I9: 0.746 | J9: 0.731 | K9: 0.693 | L9: 0.66 | M9: 0.656
A10: Crude oil and gas condensate production **,*** | B10: 0.045 | C10: 0.094 | D10: 0.092 | E10: 0.088 | F10: 0.084 | G10: 0.086 | H10: 0.087 | I10: 0.106 | J10: 0.109 | K10: 0.11 | L10: 0.111 | M10: 0.115
A11: Primary processing of oil and stable gas condensate **,*** | B11: 0.049 | C11: 0.14 | D11: 0.141 | E11: 0.145 | F11: 0.155 | G11: 0.165 | H11: 0.172 | I11: 0.188 | J11: 0.194 | K11: 0.189 | L11: 0.185 | M11: 0.184
A12: Electric power energy production **,*** | B12: – | C12: – | D12: 0.031 | E12: 0.105 | F12: 0.139 | G12: 0.169 | H12: 0.169 | I12: 0.162 | J12: 0.153 | K12: 0.146 | L12: 0.143 | M12: 0.146
A13: Total length of trunk pipelines and pipeline branches on the territory of Russia, thousand km | B13: 155 | C13: 156.9 | D13: 158.2 | E13: 159.5 | F13: 160.4 | G13: 161.7 | H13: 164.7 | I13: 168.3 | J13: 168.9 | K13: 170.7 | L13: 171.2 | M13: 171.4
A14: * Based on International Natural Gas Center CEDIGAZ and PJSC Gazprom figures. Statistics on international production and trade are adjusted to Russian standard terms and conditions using 1.07 ratio.
A15: ** Based on Federal State Statistics Service, Ministry of Energy of Russia and PJSC Gazprom figures.
A16: *** Starting from 1 January 2012, the volumes include share in the results of entities where Gazprom has investments classified as joint operations.
A18: Back to Contents

Sheet Financial results
A1: Financial results
A2: Major financial results and ratios of Gazprom Group
B3: For the year ended 31 December
B4: 2010 | C4: 2011 | D4: 2012 | E4: 2013 | F4: 2014 | G4: 2015 | H4: 2016
A5: Statement of comprehensive income figures
A6: Sales, RUB mm | B6: 3597054 | C6: 4637090 | D6: 4766495 | E6: 5249965 | F6: 5589811 | G6: 6073318 | H6: 6111051
A7: Operating expences, RUB mm | B7: 2440777 | C7: 2942181 | D7: 3421847 | E7: 3600908 | F7: 3943669 | G7: 4635502 | H7: 5244983
A8: Operating profit, RUB mm | B8: 1113822 | C8: 1656843 | D8: 1350677 | E8: 1587209 | F8: 1310424 | G8: 1228301 | H8: 725580
A9: Adjusted EBITDA, RUB mm | B9: 1363778 | C9: 1930533 | D9: 1645921 | E9: 2009475 | F9: 1962558 | G9: 1874726 | H9: 1322199
A10: Profit for the year, RUB mm | B10: 997993 | C10: 1342442 | D10: 1252415 | E10: 1165705 | F10: 157192 | G10: 805199 | H10: 997104
A11: Profit for the year attributable to owners of PJSC Gazprom, RUB mm. | B11: 968557 | C11: 1307018 | D11: 1224474 | E11: 1139261 | F11: 159004 | G11: 787056 | H11: 951637
A12: Basic and diluted earnings per share for profit attributable to the owners of PJSC Gazprom, RUB | B12: 42.2 | C12: 56.95 | D12: 53.35 | E12: 49.64 | F12: 6.93 | G12: 34.29 | H12: 42.19
A13: Balance sheet figures
A14: Total assets, RUB mm | B14: 9235993 | C14: 10900696 | D14: 11956836 | E14: 13436236 | F14: 15177470 | G14: 17052040 | H14: 16918938
A15: Current assets, RUB mm | B15: 1865895 | C15: 2240293 | D15: 2420803 | E15: 2862670 | F15: 3461155 | G15: 3993722 | H15: 3234346
A16: Inventories, RUB mm | B16: 325739 | C16: 407530 | D16: 462746 | E16: 569724 | F16: 671916 | G16: 804364 | H16: 711199
A17: Current liabilities, RUB mm | B17: 1011261 | C17: 1309255 | D17: 1492066 | E17: 1391465 | F17: 1855947 | G17: 2124701 | H17: 1921808
A18: Total debt, RUB mm | B18: 1315447 | C18: 1536819 | D18: 1500592 | E18: 1801928 | F18: 2688824 | G18: 3442215 | H18: 2829623
A19: Net debt, RUB mm | B19: 870993 | C19: 1028176 | D19: 1 071 214 | E19: 1112798 | F19: 1650633 | G19: 2083120 | H19: 1932895
A20: Equity, excluding non-controlling interest, RUB mm | B20: 6249751 | C20: 7463571 | D20: 8170733 | E20: 9319590 | F20: 9816558 | G20: 10589586 | H20: 11 094 531
A21: Equity, including non-controlling interest, RUB mm | B21: 6536361 | C21: 7760991 | D21: 8479945 | E21: 9634354 | F21: 10120021 | G21: 10914622 | H21: 11441839
A22: Capital expenditures*, RUB mm | B22: 920133 | C22: 1351590 | D22: 1233210 | E22: 1213850 | F22: 1221328 | G22: 1344829 | H22: 1344162
A23: Statement of cash flows figures
A24: Cash flows from operating activities, RUB mm | B24: 1460116 | C24: 1637450 | D24: 1472779 | E24: 1741804 | F24: 1915769 | G24: 2030927 | H24: 1571323
A25: Capital expenditures, RUB mm | B25: 1042642 | C25: 1553118 | D25: 1349114 | E25: 1397195 | F25: 1262140 | G25: 1641024 | H25: 1369052
A26: Seft-financing ratio | B26: 1.4 | C26: 1.05 | D26: 1.09 | E26: 1.25 | F26: 1.52 | G26: 1.24 | H26: 1.15
A27: Cash flows from investing activities, RUB mm | B27: 1050307 | C27: 1605245 | D27: 1287216 | E27: 1466512 | F27: 1441305 | G27: 1664156 | H27: 1445965
A28: Cash flows from financing activities, RUB mm | B28: 212384 | C28: -31814 | D28: 253870 | E28: 33262 | F28: 262587 | G28: 138305 | H28: 460479
A29: Cash and cash equivalents as at the end of the reporting year, RUB mm | B29: 440786 | C29: 501344 | D29: 425720 | E29: 689130 | F29: 1038191 | G29: 1359095 | H29: 896728
A30: Return ratios**
A31: Return on operating profit | B31: 0.31 | C31: 0.36 | D31: 0.28 | E31: 0.3 | F31: 0.23 | G31: 0.2 | H31: 0.12
A32: Return on adjusted EBITDA | B32: 0.38 | C32: 0.42 | D32: 0.35 | E32: 0.38 | F32: 0.35 | G32: 0.31 | H32: 0.22
A33: Return on profit for the yaer | B33: 0.28 | C33: 0.29 | D33: 0.26 | E33: 0.22 | F33: 0.03 | G33: 0.13 | H33: 0.16
A34: Return on assets (ROA) | B34: 0.1133791712 | C34: 0.13 | D34: 0.11 | E34: 0.09 | F34: 0.01 | G34: 0.05 | H34: 0.06
A35: Return on equity (ROE) | B35: 0.1637976438 | C35: 0.19 | D35: 0.15 | E35: 0.13 | F35: 0.02 | G35: 0.08 | H35: 0.09
A36: Ratios of total and net debt**
A37: Total debt / equity and non-controlling interest | B37: 0.2 | C37: 0.2 | D37: 0.18 | E37: 0.19 | F37: 0.27 | G37: 0.32 | H37: 0.25
A38: Total debt / total debt, equity and non-controlling interest | B38: 0.17 | C38: 0.17 | D38: 0.15 | E38: 0.16 | F38: 0.21 | G38: 0.24 | H38: 0.2
A39: Total debt / total assets | B39: 0.14 | C39: 0.14 | D39: 0.13 | E39: 0.13 | F39: 0.18 | G39: 0.2 | H39: 0.17
A40: Total debt/ adjusted EBITDA | B40: 0.96 | C40: 0.8 | D40: 0.91 | E40: 0.9 | F40: 1.37 | G40: 1.84 | H40: 2.14
A41: Net debt/ adjusted EBITDA | B41: 0.64 | C41: 0.54 | D41: 0.65 | E41: 0.55 | F41: 0.84 | G41: 1.11 | H41: 1.46
A42: Liquidity ratios**
A43: Current liquidity ratio | B43: 1.85 | C43: 1.71 | D43: 1.62 | E43: 2.06 | F43: 1.86 | G43: 1.88 | H43: 1.68
A44: Quick liquidity ratio | B44: 1.523005436 | C44: 1.4 | D44: 1.31 | E44: 1.65 | F44: 1.5 | G44: 1.5 | H44: 1.31
A45: Other ratios**
A46: EV / EBITDA | B46: 3.999667518 | C46: 2.6 | D46: 2.7 | E46: 2.2 | F46: 2.4 | G46: 2.8 | H46: 4.2
A47: P / E | B47: 4.588151659 | C47: 3 | D47: 2.7 | E47: 2.8 | F47: 18.8 | G47: 4 | H47: 3.7
A48: P / S | B48: 1.274283224 | C48: 0.9 | D48: 0.7 | E48: 0.6 | F48: 0.6 | G48: 0.5 | H48: 0.6
A49: * Capital expenditures are derived from Segment Information in PJSC Gazprom’s IFRS consolidated financial statements.
A50: ** Calculation methods are provided in the “Calculation of Financial Ratios” section.
A52: Back to Contents

Sheet Macroeconomic data
A1: Macroeconomic data
A2: Indicator* | B2: Measure | C2: As at and for the year ended 31 December
C3: 2005 | D3: 2006 | E3: 2007 | F3: 2008 | G3: 2009 | H3: 2010 | I3: 2011 | J3: 2012 | K3: 2013 | L3: 2014 | M3: 2015 | N3: 2016
A4: Consumer price index (December vs. December of the previous year) | B4: % | C4: 0.109 | D4: 0.09 | E4: 0.119 | F4: 0.133 | G4: 0.088 | H4: 0.088 | I4: 0.061 | J4: 0.066 | K4: 0.065 | L4: 0.114 | M4: 0.129 | N4: 0.054
A5: Producer price index (December vs. December of the previous year) | B5: % | C5: 0.134 | D5: 0.104 | E5: 0.251 | F5: -0.07 | G5: 0.139 | H5: 0.167 | I5: 0.12 | J5: 0.051 | K5: 0.037 | L5: 0.059 | M5: 0.107 | N5: 0.074
A6: Average RUB/USD currency exchange rate for the period | B6: RUB/USD | C6: 28.32 | D6: 27.14 | E6: 25.55 | F6: 24.87 | G6: 31.75 | H6: 30.38 | I6: 29.39 | J6: 31.08 | K6: 31.9 | L6: 38.6 | M6: 61.32 | N6: 66.83
A7: RUB/USD currency exchange rate at the end of the period | B7: RUB/USD | C7: 28.78 | D7: 26.33 | E7: 24.55 | F7: 29.38 | G7: 30.24 | H7: 30.36 | I7: 32.2 | J7: 30.37 | K7: 32, 73 | L7: 56.26 | M7: 72.88 | N7: 60.66
A8: Average RUB/EUR currency exchange rate for the period | B8: RUB/EUR | C8: 35.15 | D8: 34.11 | E8: 35.03 | F8: 36.45 | G8: 44.19 | H8: 40.21 | I8: 40.9 | J8: 39.92 | K8: 42.39 | L8: 50.99 | M8: 67.99 | N8: 73.99
A9: RUB/EUR currency exchange rate at the end of the period | B9: RUB/EUR | C9: 34.19 | D9: 34.7 | E9: 35.93 | F9: 41.44 | G9: 43.39 | H9: 39.9 | I9: 41.67 | J9: 40.23 | K9: 44.97 | L9: 68.34 | M9: 79.7 | N9: 63.81
A10: Brent oil price (Dated)** | B10: USD/barrel | C10: 58.21 | D10: 58.93 | E10: 96.02 | F10: 36.55 | G10: 77.67 | H10: 92.54 | I10: 106.51 | J10: 109.99 | K10: 110.28 | L10: 55,98 | M10: 35.74 | N10: 54.94
A11: Urals oil price (average CIF MED/RDAM)** | B11: USD/barrel | C11: 53.61 | D11: 55.26 | E11: 93.09 | F11: 35.89 | G11: 77 | H11: 90.27 | I11: 104.29 | J11: 108.09 | K11: 109.1 | L11: 53,40 | M11: 33.11 | N11: 53.27
A12: Brent average annual oil price (Dated)** | B12: USD/barrel | C12: 54.52 | D12: 65.14 | E12: 72.39 | F12: 97.28 | G12: 61.67 | H12: 79.5 | I12: 111.26 | J12: 111.67 | K12: 108.66 | L12: 98,95 | M12: 52.39 | N12: 43.73
A13: Urals (average CIF MED/RDAM) average annual oil price** | B13: USD/barrel | C13: 50.59 | D13: 61.28 | E13: 69.28 | F13: 94.82 | G13: 61.18 | H13: 78.28 | I13: 109.1 | J13: 110.37 | K13: 107.71 | L13: 96,94 | M13: 51.42 | N13: 42.1
A14: * Economic indicators and exchange rates based on the data provided by Central Bank of Russia and the Federal State Statistics Service. The average exchange rates calculated based on the working days exchange rates provided by Central Bank of Russia.
A15: ** Source: Platts.
A17: Back to Contents

Sheet Market data
A1: Market data
A2: Indicator | B2: Measure | C2: As at and for the year ended 31 December
C3: 2005 | D3: 2006 | E3: 2007 | F3: 2008 | G3: 2009 | H3: 2010 | I3: 2011 | J3: 2012 | K3: 2013 | L3: 2014 | M3: 2015 | N3: 2016
A4: Price per share on PAO Moscow Exchange
A5: as at the end of the year | B5: RUB | C5: 194.3 | D5: 302.89 | E5: 342.88 | F5: 108.6 | G5: 183.21 | H5: 193.62 | I5: 171.37 | J5: 143.91 | K5: 138.75 | L5: 130,31 | M5: 136.09 | N5: 154.55
A6: minimum | B6: RUB | C6: 69.6 | D6: 216 | E6: 227.99 | F6: 86.6 | G6: 101.91 | H6: 142.84 | I6: 143.03 | J6: 137.18 | K6: 107.17 | L6: 117,87 | M6: 130.9 | N6: 124.6
A7: maximum | B7: RUB | C7: 195 | D7: 350.25 | E7: 357.2 | F7: 367.4 | G7: 200.16 | H7: 197.34 | I7: 243.93 | J7: 199.69 | K7: 158 | L7: 153,25 | M7: 163 | N7: 168.47
A8: Price per ADR* on LSE
A9: as at the end of the year | B9: USD | C9: 28.68 | D9: 46 | E9: 56.7 | F9: 14.25 | G9: 25.5 | H9: 25.25 | I9: 10.66 | J9: 9.46 | K9: 8.55 | L9: 4,65 | M9: 3.69 | N9: 5.05
A10: minimum | B10: USD | C10: 11.92 | D10: 29.48 | E10: 35.4 | F10: 11.91 | G10: 12.26 | H10: 18.06 | I10: 8.74 | J10: 8.7 | K10: 6.48 | L10: 3,73 | M10: 3.62 | N10: 3.02
A11: maximum | B11: USD | C11: 31.4 | D11: 52.64 | E11: 58.5 | F11: 62.5 | G11: 27.3 | H11: 26.64 | I11: 17.4 | J11: 13.53 | K11: 9.82 | L11: 9,06 | M11: 6.24 | N11: 5.27
A12: Number of common shares issued, as at the end of the year | B12: mm shares | C12: 23674 | D12: 23674 | E12: 23674 | F12: 23674 | G12: 23674 | H12: 23674 | I12: 23674 | J12: 23674 | K12: 23674 | L12: 23 674 | M12: 23 674 | N12: 23 674
A13: Number of common shares outstanding, as at the end of the year | B13: mm shares | C13: 848 | D13: 749 | E13: 66 | F13: 30 | G13: 724 | H13: 723 | I13: 726 | J13: 724 | K13: 723 | L13: 723 | M13: 723 | N13: 1573
A14: Number of common shares held by the subsidiaries of PJSC Gazprom, as at the end of the year | B14: mm shares | C14: =C12-C13 -> 22826 | D14: 22925 | E14: 23608 | F14: 23644 | G14: 22950 | H14: 22951 | I14: 22948 | J14: 22950 | K14: 22 951 | L14: 22 951 | M14: 22 951 | N14: 22101
A15: Market capitalization as at the end of the year*** | B15: USD bn | C15: 160.3 | D15: 272 | E15: 330.9 | F15: 86 | G15: 144.5 | H15: 150.9 | I15: 122.6 | J15: 111.6 | K15: 99.9 | L15: 54,8 | M15: 44.2 | N15: 60.3
A16: change (y-o-y) | B16: % | C16: 1.418 | D16: =ROUND((D15-C15)/C15,3) -> 0.697 | E16: 0.217 | F16: -0.74 | G16: 0.68 | H16: 0.044 | I16: -0.188 | J16: -0.09 | K16: -0.105 | L16: -0.451 | M16: -0.193 | N16: 0.364
A17: MICEX index | B17: points | C17: 1011 | D17: 1693 | E17: 1889 | F17: 620 | G17: 1370 | H17: 1688 | I17: 1402 | J17: 1475 | K17: 1504 | L17: 1 397 | M17: 1761 | N17: 2233
A18: change (y-o-y) | B18: % | C18: 0.832 | D18: =ROUND((D17-C17)/C17,3) -> 0.675 | E18: 0.116 | F18: -0.672 | G18: 1.21 | H18: 0.232 | I18: -0.169 | J18: 0.052 | K18: 0.02 | L18: -0.071 | M18: 0.261 | N18: 0.268
A19: RTS index | B19: points | C19: 1126 | D19: 1922 | E19: 2291 | F19: 632 | G19: 1445 | H19: 1770 | I19: 1382 | J19: 1527 | K19: 1443 | L19: 791 | M19: 757 | N19: 1152
A20: change (y-o-y) | B20: % | C20: 0.858 | D20: =ROUND((D19-C19)/C19,3) -> 0.707 | E20: 0.192 | F20: -0.724 | G20: 1.286 | H20: 0.225 | I20: -0.219 | J20: 0.105 | K20: -0.055 | L20: -0.452 | M20: -0.043 | N20: 0.522
A21: Daily average trading volume, MIСEX Stock Exchange | B21: mm shares | C21: 20.8 | D21: 49.2 | E21: 47.8 | F21: 67.2 | G21: 85.2 | H21: 56.4 | I21: 74.6 | J21: 39.4 | K21: 43.9 | L21: 52,5 | M21: 32.5 | N21: 29.9
A22: Daily average trading volume, LSE | B22: mm ADRs* | C22: 1.7 | D22: 4.4 | E22: 7.2 | F22: 16.9 | G22: 12.6 | H22: 13.7 | I22: 43.2 | J22: 32.1 | K22: 25 | L22: 27,6 | M22: 16.4 | N22: 15.9
A23: Dividend per share **** | B23: RUB | C23: 1.5 | D23: 2.54 | E23: 2.66 | F23: 0.36 | G23: 2.39 | H23: 3.85 | I23: 8.97 | J23: 5.99 | K23: 7.2 | L23: 7,20 | M23: 7.89 | N23: 8.0397
A24: Share capital structure
A25: Shareholding controlled by the Russian Federation*****
A26: Federal Agency for State Property Management | B26: % | C26: 0.38373 | D26: 0.38373 | E26: 0.38373 | F26: 0.38373 | G26: 0.38373 | H26: 0.38373 | I26: 0.3837 | J26: 0.3837 | K26: 0.3837 | L26: 0.3837 | M26: 0.3837 | N26: 0.3837
A27: AO Rosneftegaz | B27: % | C27: 0.1074 | D27: 0.1074 | E27: 0.1074 | F27: 0.1074 | G27: 0.1074 | H27: 0.1074 | I27: 0.1074 | J27: 0.1074 | K27: 0.1097 | L27: 0.1097 | M27: 0.1097 | N27: 0.1097
A28: OAO Rosgazifikatsiya | B28: % | C28: 0.00889 | D28: 0.00889 | E28: 0.00889 | F28: 0.00889 | G28: 0.00889 | H28: 0.00889 | I28: 0.0089 | J28: 0.0089 | K28: 0.0089 | L28: 0.0089 | M28: 0.0089 | N28: 0.0089
A29: ADR holders****** | B29: % | C29: 0.04422 | D29: 0.132 | E29: 0.2102 | F29: 0.2215 | G29: 0.2435 | H29: 0.2757 | I29: 0.2835 | J29: 0.2696 | K29: 0.2578 | L29: 0.2805 | M29: 0.2783 | N29: 0.2686
A30: Other holders of record | B30: % | C30: 0.45576 | D30: 0.36798 | E30: 0.28978 | F30: 0.27848 | G30: 0.25648 | H30: 0.22428 | I30: 0.2165 | J30: 0.2304 | K30: 0.2399 | L30: 0.2172 | M30: 0.2194 | N30: 0.2291
A31: Total | B31: % | C31: =SUM(C26:C30) -> 1 | D31: 1 | E31: 1 | F31: 1 | G31: 1 | H31: 1 | I31: 1 | J31: 1 | K31: 1 | L31: 1 | M31: 1 | N31: 1
A32: * Before April 2011 1 ADR provided a right for 4 ordinary shares of OAO Gazprom. Since April 2011 onwards 1 ADR provides a right for 2 ordinary shares of OAO Gazprom (after 17 July 2015 — PJSC Gazprom).
A33: ** As at 31 December of the respective year, there were no ordinary shares of PJSC Gazprom which belong to the Company.
A34: *** Market capitalization based on PAO Moscow Exchange share price converted into USD.
A35: **** For 2016 – recommended dividends
A36: ***** Russian Federation controls over 50% of PJSC Gazprom.
A37: ****** The Bank of New York Mellon issued ADRs on PJSC Gazprom’s shares.
A39: Back to Contents

Sheet Reserves
A1: Exploration and production in Russia
A2: Reserves
A3: Hydrocarbon reserves of Gazprom Group in Russia
A4: (including share in reserves of companies, investments in which are classified as joint operations)
A5: Metric units
B6: As at 31 December
B7: 2005* | C7: 2006* | D7: 2007* | E7: 2008* | F7: 2009* | G7: 2010* | H7: 2011* | I7: 2012 | J7: 2013 | K7: 2014 | L7: 2015 | M7: 2016
A8: Natural gas, bcm
A9: Reserves, Russian classification | B9: 29130.7 | C9: 29854.2 | D9: 29785.4 | E9: 33123.2 | F9: 33578.4 | G9: 33052.3 | H9: 35046.9 | I9: 35169.8 | J9: 35696.6 | K9: 36101.4 | L9: 36147.3 | M9: 36443.9
A10: of which evaluated according PRMS | B10: 0.95 | C10: 0.93 | D10: 0.95 | E10: 0.88 | F10: 0.89 | G10: 0.93 | H10: 0.9 | I10: 0.94 | J10: 0.93 | K10: 0.94 | L10: 0.94 | M10: 0.95
A11: Proved | B11: 16052.1 | C11: 18187.6 | D11: 18286.5 | E11: 18187.8 | F11: 18609.9 | G11: 18991.3 | H11: 19212.6 | I11: 19133 | J11: 18939.3 | K11: 18894.7 | L11: 18791.2 | M11: 18596.5
A12: Probable | B12: 4757.2 | C12: 2580 | D12: 2551.5 | E12: 3088.2 | F12: 3338.1 | G12: 3529 | H12: 3631.5 | I12: 4254.1 | J12: 4325.2 | K12: 4616 | L12: 4913.8 | M12: 5258.6
A13: Proved + probable | B13: 20809.3 | C13: 20767.6 | D13: 20838 | E13: 21276 | F13: 21948 | G13: 22520.3 | H13: 22844.1 | I13: 23387.1 | J13: 23264.5 | K13: 23510.7 | L13: 23705 | M13: 23855.1
A14: Gas condensate, mm tonnes
A15: Reserves, Russian classification | B15: 1216.3 | C15: 1217 | D15: 1212.5 | E15: 1287.1 | F15: 1325.1 | G15: 1284.8 | H15: 1395.5 | I15: 1386.1 | J15: 1384.4 | K15: 1447 | L15: 1499.5 | M15: 1534.9
A16: of which evaluated according PRMS | B16: 0.9 | C16: 0.9 | D16: 0.9 | E16: 0.85 | F16: 0.82 | G16: 0.86 | H16: 0.83 | I16: 0.89 | J16: 0.89 | K16: 0.92 | L16: 0.92 | M16: 0.94
A17: Proved | B17: 507.9 | C17: 528.9 | D17: 568.9 | E17: 587.9 | F17: 586 | G17: 572.1 | H17: 605.2 | I17: 633.8 | J17: 638.8 | K17: 642.3 | L17: 699.5 | M17: 759.2
A18: Probable | B18: 184.7 | C18: 130.1 | D18: 117.2 | E18: 141.9 | F18: 141.2 | G18: 147.2 | H18: 152.6 | I18: 174.9 | J18: 193.6 | K18: 206.3 | L18: 233.8 | M18: 259.7
A19: Proved + probable | B19: 692.6 | C19: 659 | D19: 686.1 | E19: 729.8 | F19: 727.2 | G19: 719.3 | H19: 757.8 | I19: 808.7 | J19: 832.4 | K19: 848.6 | L19: 933.3 | M19: 1018.9
A20: Crude oil, mm tonnes
A21: Reserves, Russian classification | B21: 1357.5 | C21: 1386.9 | D21: 1509.9 | E21: 1601.7 | F21: 1785 | G21: 1732.9 | H21: 1767.3 | I21: 1992.2 | J21: 2019 | K21: 2053.1 | L21: 2082 | M21: 2078.5
A22: of which evaluated according PRMS | B22: 0.93 | C22: 0.93 | D22: 0.93 | E22: 0.92 | F22: 0.85 | G22: 0.9 | H22: 0.89 | I22: 0.89 | J22: 0.89 | K22: 0.91 | L22: 0.92 | M22: 0.93
A23: Proved | B23: 528.8 | C23: 688.9 | D23: 727 | E23: 713.2 | F23: 718.5 | G23: 717.4 | H23: 723.9 | I23: 819.5 | J23: 834.8 | K23: 830.5 | L23: 792.7 | M23: 789.5
A24: Probable | B24: 702.9 | C24: 377.6 | D24: 405.5 | E24: 565 | F24: 435.5 | G24: 464.5 | H24: 492.2 | I24: 588.8 | J24: 572.4 | K24: 543.9 | L24: 562.7 | M24: 589.2
A25: Proved + probable | B25: 1231.7 | C25: 1066.5 | D25: 1132.5 | E25: 1278.2 | F25: 1154 | G25: 1181.9 | H25: 1216.1 | I25: 1408.3 | J25: 1407.2 | K25: 1374.4 | L25: 1355.4 | M25: 1378.7
A26: * Excluding share of Gazprom Group in reserves of companies, investments in which are classified as joint operations.
A28: Oil equivalent
B29: As at 31 December
B30: 2005* | C30: 2006* | D30: 2007* | E30: 2008* | F30: 2009* | G30: 2010* | H30: 2011* | I30: 2012 | J30: 2013 | K30: 2014 | L30: 2015 | M30: 2016
A31: Natural gas, mm boe
A32: Reserves, Russian classification | B32: =B9*6.49 -> 189058.243 | C32: 193753.758 | D32: 193307.246 | E32: 214969.568 | F32: 217923.816 | G32: 214509.427 | H32: 227454.381 | I32: 228252 | J32: 231670.9 | K32: 234298.1 | L32: 234596 | M32: 236520.9
A33: Proved | B33: 104178.2 | C33: =C11*6.49 -> 118037.524 | D33: 118679.385 | E33: 118038.822 | F33: 120778.2 | G33: 123253.537 | H33: 124689.774 | I33: 124173.2 | J33: 122916.1 | K33: 122626.6 | L33: 121954.9 | M33: 120691.3
A34: Probable | B34: =B12*6.49 -> 30874.228 | C34: 16744.2 | D34: 16559.235 | E34: 20042.418 | F34: 21664.269 | G34: 22903.21 | H34: 23568.435 | I34: 27609.1 | J34: 28070.5 | K34: 29957.8 | L34: 31890.6 | M34: 34128.3
A35: Proved + probable | B35: =B13*6.49 -> 135052.357 | C35: =C13*6.49 -> 134781.724 | D35: 135238.62 | E35: 138081.24 | F35: 142442.52 | G35: 146156.747 | H35: 148258.209 | I35: 151782.3 | J35: 150986.6 | K35: 152584.4 | L35: 153845.5 | M35: 154819.6
A36: Gas condensate, mm boe
A37: Reserves, Russian classification | B37: 9949.3 | C37: 9955.1 | D37: 9918.3 | E37: 10528.5 | F37: 10839.3 | G37: 10509.7 | H37: 11415.2 | I37: 11338.3 | J37: 11324.4 | K37: 11836.5 | L37: 12265.9 | M37: 12555.5
A38: Proved | B38: 4154.6 | C38: 4326.4 | D38: 4653.6 | E38: 4809 | F38: 4793.5 | G38: 4679.8 | H38: 4950.5 | I38: 5184.5 | J38: 5225.4 | K38: 5254 | L38: 5721.9 | M38: 6210.3
A39: Probable | B39: 1510.9 | C39: 1064.2 | D39: 958.7 | E39: 1160.8 | F39: 1155 | G39: 1204.1 | H39: 1248.3 | I39: 1430.7 | J39: 1583.6 | K39: 1687.5 | L39: 1912.5 | M39: 2124.3
A40: Proved + probable | B40: 5665.5 | C40: 5390.6 | D40: 5612.3 | E40: 5969.8 | F40: 5948.5 | G40: 5883.9 | H40: 6198.8 | I40: 6615.2 | J40: 6809 | K40: 6941.5 | L40: 7634.4 | M40: 8334.6
A41: Crude oil, mm boe
A42: Reserves, Russian classification | B42: 9950.5 | C42: 10166 | D42: 11067.6 | E42: 11740.5 | F42: 13084.1 | G42: 12702.2 | H42: 12954.3 | I42: 14602.8 | J42: 14799.3 | K42: 15049.2 | L42: 15261.1 | M42: 15235.4
A43: Proved | B43: 3876.1 | C43: 5049.6 | D43: 5328.9 | E43: 5227.8 | F43: 5266.6 | G43: 5258.5 | H43: 5306.2 | I43: 6006.9 | J43: 6119.1 | K43: 6087.6 | L43: 5810.5 | M43: 5787
A44: Probable | B44: 5152.3 | C44: 2767.8 | D44: 2972.3 | E44: 4141.4 | F44: 3192.2 | G44: 3404.8 | H44: 3607.8 | I44: 4315.9 | J44: 4195.7 | K44: 3986.8 | L44: 4124.6 | M44: 4318.8
A45: Proved + probable | B45: 9028.4 | C45: 7817.4 | D45: 8301.2 | E45: 9369.2 | F45: 8458.8 | G45: 8663.3 | H45: 8914 | I45: 10322.8 | J45: 10314.8 | K45: 10074.4 | L45: 9935.1 | M45: 10105.9
A46: Total, mm boe
A47: Reserves, Russian classification | B47: =B32+B37+B42 -> 208958.043 | C47: 213874.858 | D47: 214293.146 | E47: 237238.568 | F47: 241847.216 | G47: 237721.327 | H47: 251823.881 | I47: 254193.1 | J47: 257794.6 | K47: 261183.8 | L47: 262123 | M47: 264311.8
A48: Proved | B48: =B33+B38+B43 -> 112208.9 | C48: 127413.524 | D48: 128661.885 | E48: 128075.622 | F48: 130838.3 | G48: 133191.837 | H48: 134946.474 | I48: 135364.6 | J48: 134260.6 | K48: 133968.2 | L48: 133487.3 | M48: 132688.6
A49: Probable | B49: =B34+B39+B44 -> 37537.428 | C49: 20576.2 | D49: 20490.235 | E49: 25344.618 | F49: 26011.469 | G49: 27512.11 | H49: 28424.535 | I49: 33355.7 | J49: 33849.8 | K49: 35632.1 | L49: 37927.7 | M49: 40571.5
A50: Proved + probable | B50: =B35+B40+B45 -> 149746.257 | C50: 147989.724 | D50: 149152.12 | E50: 153420.24 | F50: 156849.82 | G50: 160703.947 | H50: 163371.009 | I50: 168720.3 | J50: 168110.4 | K50: 169600.3 | L50: 171415 | M50: 173260.1
A51: * Excluding share of Gazprom Group in reserves of companies, investments in which are classified as joint operations.
A52: Note. For management accounting purposes, Gazprom Group measures hydrocarbon reserves and production in metric units. In this Factbook, gas reserves are converted from metric units to barrels of oil equivalent at a ratio of 1,000 cubic metres to 6.49 boe. For data comparability, the figures as at 31 December 2015 and earlier have been recalculated using the above ratio and differ from figures in Gazprom in Figures 2015.
A54: Replacement ratio of Gazprom Group’s hydrocarbon reserves, Russian classification of reserves
A55: (including share in reserves of companies, investments in which are classified as joint operations)
B56: For the year ended 31 December
B57: 2005* | C57: 2006* | D57: 2007* | E57: 2008* | F57: 2009* | G57: 2010* | H57: 2011* | I57: 2012* | J57: 2013 | K57: 2014 | L57: 2015 | M57: 2016
A58: Natural gas | B58: 1 | C58: 1.1 | D58: 1.1 | E58: 1.1 | F58: 1 | G58: 1.1 | H58: 1.4 | I58: 1.18 | J58: 1.33 | K58: 1.86 | L58: 1.27 | M58: 1.1
A59: Gas condensate | B59: 1.82 | C59: 1.42 | D59: 1.18 | E59: 0.86 | F59: 5.28 | G59: 3.99 | H59: 4.41 | I59: 2.31 | J59: 0.52 | K59: 10.88 | L59: 6.12 | M59: 3.25
A60: Crude oil | B60: 0.51 | C60: 1.38 | D60: 0.59 | E60: 1.69 | F60: 1.83 | G60: 2.6 | H60: 1.78 | I60: 1.67 | J60: 1.14 | K60: 0.57 | L60: 0.47 | M60: 0.41
A61: Total | B61: 1.02 | C61: 1.09 | D61: 1.04 | E61: 1.1 | F61: 1.15 | G61: 1.24 | H61: 1.49 | I61: 1.24 | J61: 1.29 | K61: 1.95 | L61: 1.32 | M61: 1.08
A62: * Excluding share of Gazprom Group in reserves of companies, investments in which are classified as joint operations.
A64: Years of Gazprom Group’s hydrocarbon reserves, Russian classification of reserves
A65: (including share in reserves of companies, investments in which are classified as joint operations)
H66: As at 31 December
H67: 2011* | I67: 2012* | J67: 2013 | K67: 2014 | L67: 2015 | M67: 2016
A68: Natural gas | H68: 69 | I68: 73 | J68: 73 | K68: 82 | L68: 87 | M68: 87
A69: Crude oil | H69: 54 | I69: 54 | J69: 48 | K69: 47 | L69: 47 | M69: 44
A70: * Excluding share of Gazprom Group in reserves of companies, investments in which are classified as joint operations.
A72: Natural gas reserves of Gazprom Group in Russia, PRMS standards, bcm
A73: (including share in reserves of companies, investments in which are classified as joint operations)
B74: As at 31 December
B75: 2005* | C75: 2006* | D75: 2007* | E75: 2008* | F75: 2009* | G75: 2010* | H75: 2011* | I75: 2012 | J75: 2013 | K75: 2014 | L75: 2015 | M75: 2016
A76: PJSC Gazprom and its major subsidiaries**
A77: Proved | B77: 15714.7 | C77: 17902.5 | D77: 17319.5 | E77: 17196.8 | F77: 17645.5 | G77: 18029.4 | H77: 18208.1 | I77: 18133.7 | J77: 18036.7 | K77: 18023.7 | L77: 17942.5 | M77: 17780.9
A78: Probable | B78: =IF(4672<>B79-B77,B79-B77,4672) -> 4671.9 | C78: 2572.4 | D78: 2539.4 | E78: 2908.8 | F78: 3255.2 | G78: 3420.6 | H78: 3505.7 | I78: 4068.2 | J78: 4072.4 | K78: 4303.7 | L78: 4587.6 | M78: 4930.2
A79: Proved + probable | B79: 20386.6 | C79: 20474.9 | D79: 19858.9 | E79: 20105.6 | F79: 20900.7 | G79: 21450 | H79: 21713.8 | I79: 22201.9 | J79: 22109.1 | K79: 22327.4 | L79: 22530.1 | M79: 22711.1
A80: PAO Gazprom Neft and its subsidiaries
A81: Proved | B81: 66.8 | C81: 29.5 | D81: 20.6 | E81: 73.2 | F81: 80.7 | G81: 118.9 | H81: 147.2 | I81: 193.8 | J81: 216.7 | K81: 223.5 | L81: 239.5 | M81: 243
A82: Probable | B82: 81.3 | C82: 3.6 | D82: 1.8 | E82: 169.1 | F82: 72.6 | G82: 98.1 | H82: 106.4 | I82: 133.1 | J82: 111.3 | K82: 168.3 | L82: 182.1 | M82: 183
A83: Proved + probable | B83: 148.1 | C83: 33.1 | D83: 22.4 | E83: 242.3 | F83: 153.3 | G83: 217 | H83: 253.6 | I83: 326.9 | J83: 328 | K83: 391.8 | L83: 421.6 | M83: 426
A84: ZAO Purgaz
A85: Proved | B85: 270.6 | C85: 255.6 | D85: 233.1 | E85: 217.9 | F85: 206.4 | G85: 191.3 | H85: 188 | I85: 172.9 | J85: 158.3 | K85: 145 | L85: 132.3 | M85: 120.6
A86: Probable | B86: 4 | C86: 4 | D86: 3.9 | E86: 3.9 | F86: 3.9 | G86: 3.9 | H86: 12.8 | I86: 12.9 | J86: 12.9 | K86: 12.9 | L86: 12.9 | M86: 12.9
A87: Proved + probable | B87: 274.6 | C87: 259.6 | D87: 237 | E87: 221.8 | F87: 210.3 | G87: 195.2 | H87: 200.8 | I87: 185.8 | J87: 171.2 | K87: 157.9 | L87: 145.2 | M87: 133.5
A88: OAO Severneftegazprom
A89: Proved | B89: x | C89: x | D89: 713.3 | E89: 699.9 | F89: 677.3 | G89: 651.7 | H89: 669.3 | I89: 613.7 | J89: 510 | K89: 484.9 | L89: 459.8 | M89: 434.6
A90: Probable | B90: x | C90: x | D90: 6.4 | E90: 6.4 | F90: 6.4 | G90: 6.4 | H90: 6.6 | I90: 36.8 | J90: 125.7 | K90: 125.7 | L90: 125.7 | M90: 125.7
A91: Proved + probable | B91: x | C91: x | D91: 719.7 | E91: 706.3 | F91: 683.7 | G91: 658.1 | H91: 675.9 | I91: 650.5 | J91: 635.7 | K91: 610.6 | L91: 585.5 | M91: 560.3
A92: Total (excluding share in reserves of companies, investments in which are classified as joint operations)
A93: Proved | B93: 16052.1 | C93: 18187.6 | D93: 18286.5 | E93: 18187.8 | F93: 18609.9 | G93: 18991.3 | H93: 19212.6 | I93: 19114.1 | J93: 18921.7 | K93: 18877.1 | L93: 18774.1 | M93: 18579.1
A94: Probable | B94: 4757.2 | C94: 2580 | D94: 2551.5 | E94: 3088.2 | F94: 3338.1 | G94: 3529 | H94: 3631.5 | I94: 4251 | J94: 4322.3 | K94: 4610.6 | L94: 4908.3 | M94: 5251.8
A95: Proved + probable | B95: 20809.3 | C95: 20767.6 | D95: 20838 | E95: 21276 | F95: 21948 | G95: 22520.3 | H95: 22844.1 | I95: 23365.1 | J95: 23244 | K95: 23487.7 | L95: 23682.4 | M95: 23830.9
A96: Companies, investments in which are classified as joint operations (attributable to the share of Gazprom Group)
A97: Proved | B97: x | C97: x | D97: x | E97: x | F97: x | G97: x | H97: x | I97: 18.9 | J97: 17.6 | K97: 17.6 | L97: 17.1 | M97: 17.4
A98: Probable | B98: x | C98: x | D98: x | E98: x | F98: x | G98: x | H98: x | I98: 3.1 | J98: 2.9 | K98: 5.4 | L98: 5.5 | M98: 6.8
A99: Proved + probable | B99: x | C99: x | D99: x | E99: x | F99: x | G99: x | H99: x | I99: 22 | J99: 20.5 | K99: 23 | L99: 22.6 | M99: 24.2
A100: Total (including share in reserves of companies, investments in which are classified as joint operations)
A101: Proved | B101: x | C101: x | D101: x | E101: x | F101: x | G101: x | H101: x | I101: 19133 | J101: 18939.3 | K101: 18894.7 | L101: 18791.2 | M101: 18596.5
A102: Probable | B102: x | C102: x | D102: x | E102: x | F102: x | G102: x | H102: x | I102: 4254.1 | J102: 4325.2 | K102: 4616 | L102: 4913.8 | M102: 5258.6
A103: Proved + probable | B103: x | C103: x | D103: x | E103: x | F103: x | G103: x | H103: x | I103: 23387.1 | J103: 23264.5 | K103: 23510.7 | L103: 23705 | M103: 23855.1
A104: * Excluding share of Gazprom Group in reserves of companies, investments in which are classified as joint operations.
A105: ** For the list of companies, see Glossary.
A107: Gas condensate reserves of Gazprom Group in Russia, PRMS classification, mm tonnes
A108: (including share in reserves of companies, investments in which are classified as joint operations)
B109: As at 31 December
B110: 2005* | C110: 2006* | D110: 2007* | E110: 2008* | F110: 2009* | G110: 2010* | H110: 2011* | I110: 2012 | J110: 2013 | K110: 2014 | L110: 2015 | M110: 2016
A111: PJSC Gazprom and its major subsidiaries**
A112: Proved | B112: 507.9 | C112: 528.9 | D112: 568.9 | E112: 587.9 | F112: 586 | G112: 572.1 | H112: 605.2 | I112: 633.8 | J112: 634.4 | K112: 637.3 | L112: 691.9 | M112: 751.7
A113: Probable | B113: 184.7 | C113: 130.1 | D113: 117.2 | E113: 141.9 | F113: 141.2 | G113: 147.2 | H113: 152.6 | I113: 174.9 | J113: 190.3 | K113: 202.8 | L113: 230.2 | M113: 257
A114: Proved + probable | B114: 692.6 | C114: 659 | D114: 686.1 | E114: 729.8 | F114: 727.2 | G114: 719.3 | H114: 757.8 | I114: 808.7 | J114: 824.7 | K114: 840.1 | L114: 922.1 | M114: 1008.7
A115: PAO Gazprom Neft and its subsidiaries
A116: Proved*** | B116: x | C116: x | D116: x | E116: x | F116: x | G116: x | H116: x | I116: x | J116: 4.4 | K116: 5 | L116: 7.6 | M116: 7.5
A117: Probable*** | B117: x | C117: x | D117: x | E117: x | F117: x | G117: x | H117: x | I117: x | J117: 3.3 | K117: 3.5 | L117: 3.6 | M117: 2.7
A118: Proved + probable*** | B118: x | C118: x | D118: x | E118: x | F118: x | G118: x | H118: x | I118: x | J118: 7.7 | K118: 8.5 | L118: 11.2 | M118: 10.2
A119: Total
A120: Proved | B120: 507.9 | C120: 528.9 | D120: 568.9 | E120: 587.9 | F120: 586 | G120: 572.1 | H120: 605.2 | I120: 633.8 | J120: 638.8 | K120: 642.3 | L120: 699.5 | M120: 759.2
A121: Probable | B121: 184.7 | C121: 130.1 | D121: 117.2 | E121: 141.9 | F121: 141.2 | G121: 147.2 | H121: 152.6 | I121: 174.9 | J121: 193.6 | K121: 206.3 | L121: 233.8 | M121: 259.7
A122: Proved + probable | B122: 692.6 | C122: 659 | D122: 686.1 | E122: 729.8 | F122: 727.2 | G122: 719.3 | H122: 757.8 | I122: 808.7 | J122: 832.4 | K122: 848.6 | L122: 933.3 | M122: 1 018,9
A123: * Excluding share of Gazprom Group in reserves of companies, investments in which are classified as joint operations.
A124: ** For the list of companies, see Glossary.
A125: *** For reserves prior to 31 December 2013, gas condensate reserves of Gazprom Neft Group were included in oil reserves.
A127: Oil reserves of Gazprom Group in Russia, PRMS standards, mm tonnes
A128: (including share in reserves of companies, investments in which are classified as joint operations)
B129: As at 31 December
B130: 2005* | C130: 2006* | D130: 2007* | E130: 2008* | F130: 2009* | G130: 2010* | H130: 2011* | I130: 2012 | J130: 2013 | K130: 2014 | L130: 2015 | M130: 2016
A131: PJSC Gazprom and its major subsidiaries**
A132: Proved | B132: 67.3 | C132: 87.1 | D132: 76.9 | E132: 97.6 | F132: 93 | G132: 82.9 | H132: 57.3 | I132: 58.9 | J132: 55.5 | K132: 55.6 | L132: 44.7 | M132: 44.6
A133: Probable | B133: 232.2 | C133: 203.8 | D133: 210 | E133: 185.7 | F133: 159.8 | G133: 179.1 | H133: 171.2 | I133: 105 | J133: 121 | K133: 45.9 | L133: 35 | M133: 35
A134: Proved + probable | B134: 299.5 | C134: 290.9 | D134: 286.9 | E134: 283.3 | F134: 252.8 | G134: 262 | H134: 228.5 | I134: 163.9 | J134: 176.5 | K134: 101.5 | L134: 79.7 | M134: 79.6
A135: PAO Gazprom Neft and its subsidiaries
A136: Proved | B136: 461.5 | C136: 601.8 | D136: 650.1 | E136: 615.6 | F136: 625.5 | G136: 634.5 | H136: 666.6 | I136: 654.9 | J136: 683.9 | K136: 675.9 | L136: 655.6 | M136: 652.8
A137: Probable | B137: 470.7 | C137: 173.8 | D137: 195.5 | E137: 379.3 | F137: 275.7 | G137: 285.4 | H137: 321 | I137: 418.8 | J137: 393.8 | K137: 432.8 | L137: 458.7 | M137: 486.1
A138: Proved + probable | B138: 932.2 | C138: 775.6 | D138: 845.6 | E138: 994.9 | F138: 901.2 | G138: 919.9 | H138: 987.6 | I138: 1073.7 | J138: 1077.7 | K138: 1108.7 | L138: 1114.3 | M138: 1138.9
A139: Total (excluding share in reserves of companies, investments in which are classified as joint operations)
A140: Proved | B140: 528.8 | C140: 688.9 | D140: 727 | E140: 713.2 | F140: 718.5 | G140: 717.4 | H140: 723.9 | I140: 713.8 | J140: 739.4 | K140: 731.5 | L140: 700.3 | M140: 697.4
A141: Probable | B141: 702.9 | C141: 377.6 | D141: 405.5 | E141: 565 | F141: 435.5 | G141: 464.5 | H141: 492.2 | I141: 523.8 | J141: 514.8 | K141: 478.7 | L141: 493.7 | M141: 521.1
A142: Proved + probable | B142: 1231.7 | C142: 1066.5 | D142: 1132.5 | E142: 1278.2 | F142: 1154 | G142: 1181.9 | H142: 1216.1 | I142: 1237.6 | J142: 1254.2 | K142: 1210.2 | L142: 1194 | M142: 1218.5
A143: Companies, investments in which are classified as joint operations (attributable to the share of Gazprom Group)
A144: Proved | B144: x | C144: x | D144: x | E144: x | F144: x | G144: x | H144: x | I144: 105.7 | J144: 95.4 | K144: 99.1 | L144: 92.4 | M144: 92.1
A145: Probable | B145: x | C145: x | D145: x | E145: x | F145: x | G145: x | H145: x | I145: 65 | J145: 57.6 | K145: 65.1 | L145: 69 | M145: 68.1
A146: Proved + probable | B146: х | C146: х | D146: х | E146: х | F146: х | G146: х | H146: х | I146: 170.7 | J146: 153 | K146: 164.2 | L146: 161.4 | M146: 160.2
A147: Total (including share in reserves of companies, investments in which are classified as joint operations)
A148: Proved | B148: x | C148: x | D148: x | E148: x | F148: x | G148: x | H148: x | I148: 819.5 | J148: 834.8 | K148: 830.5 | L148: 792.7 | M148: 789.5
A149: Probable | B149: x | C149: x | D149: x | E149: x | F149: x | G149: x | H149: x | I149: 588.8 | J149: 572.4 | K149: 543.9 | L149: 562.7 | M149: 589.2
A150: Proved + probable | B150: x | C150: x | D150: x | E150: x | F150: x | G150: x | H150: x | I150: 1408.3 | J150: 1407.2 | K150: 1374.4 | L150: 1355.4 | M150: 1378.7
A151: * Excluding share of Gazprom Group in reserves of companies, investments in which are classified as joint operations.
A152: ** For the list of companies, see Glossary.
A154: Hydrocarbon reserves (Russian classification of reserves) of Gazprom Group in Russia
A155: (including share in reserves of companies, investments in which are classified as joint operations)
B156: As at 31 December
B157: 2005* | C157: 2006* | D157: 2007* | E157: 2008* | F157: 2009* | G157: 2010* | H157: 2011* | I157: 2012 | J157: 2013 | K157: 2014 | L157: 2015 | M157: 2016
A158: Natural gas, bcm
A159: Ural FD | B159: 22341.2 | C159: 21937.3 | D159: 21514.1 | E159: 24265.2 | F159: 24390.6 | G159: 23566.8 | H159: 23401.1 | I159: 23144.2 | J159: 22456.6 | K159: 22032.2 | L159: 21613.5 | M159: 21309
A160: North-Western FD | B160: 94.2 | C160: 93.2 | D160: 93.3 | E160: 92.2 | F160: 90.4 | G160: 89.3 | H160: 88.2 | I160: 87.4 | J160: 86.9 | K160: 85.8 | L160: 85.1 | M160: 307.3
A161: South FD and Nortern Caucasian FD | B161: 2616.6 | C161: 2594.8 | D161: 2581.8 | E161: 2569 | F161: 2560.7 | G161: 2545.4 | H161: 2523.1 | I161: 2510.5 | J161: 2498.9 | K161: 2997.4 | L161: 2985.3 | M161: 2973.1
A162: Volga FD | B162: 830.4 | C162: 810.6 | D162: 792.8 | E162: 774.7 | F162: 758.5 | G162: 751.3 | H162: 735.4 | I162: 717.8 | J162: 696.2 | K162: 684.1 | L162: 663.5 | M162: 648.9
A163: Siberian FD | B163: 303.9 | C163: 295 | D163: 275.5 | E163: 291.7 | F163: 284.7 | G163: 308.3 | H163: 1668.1 | I163: 1737.5 | J163: 1755.1 | K163: 1936.7 | L163: 1971.6 | M163: 2103.3
A164: Far Eastern FD | B164: 8.8 | C164: 8.8 | D164: 22 | E164: 401.7 | F164: 402.2 | G164: 456.6 | H164: 1106.2 | I164: 1181 | J164: 1197.2 | K164: 1197.2 | L164: 1402.1 | M164: 1488.3
A165: Continental shelf of the Russian Federation | B165: 2935.6 | C165: 4114.5 | D165: 4505.9 | E165: 4728.7 | F165: 5091.3 | G165: 5334.6 | H165: 5524.8 | I165: 5791.4 | J165: 7005.7 | K165: 7168 | L165: 7426.2 | M165: 7614
A166: Total | B166: 29130.7 | C166: 29854.2 | D166: 29785.4 | E166: =SUM(E159:E165) -> 33123.2 | F166: =SUM(F159:F165) -> 33578.4 | G166: =SUM(G159:G165) -> 33052.3 | H166: 35046.9 | I166: 35169.8 | J166: 35696.6 | K166: 36101.4 | L166: 36147.3 | M166: 36443.9
A167: Gas condensate, mm tons
A168: Ural FD | B168: 688.4 | C168: 689.7 | D168: 690.2 | E168: 760.4 | F168: 770.9 | G168: 724 | H168: 730.5 | I168: 713.8 | J168: 712.4 | K168: 675.7 | L168: 695.2 | M168: 690.6
A169: North-Western FD | B169: 21.5 | C169: 21.3 | D169: 21.3 | E169: 21.2 | F169: 20.9 | G169: 20.8 | H169: 20.7 | I169: 20.6 | J169: 20.6 | K169: 20.5 | L169: 20.5 | M169: 31.3
A170: South FD and Nortern Caucasian FD | B170: 395.8 | C170: 392.4 | D170: 389.2 | E170: 386 | F170: 383.5 | G170: 380.6 | H170: 377.4 | I170: 374.3 | J170: 371.5 | K170: 447.5 | L170: 444.7 | M170: 441.9
A171: Volga FD | B171: 59.2 | C171: 58.7 | D171: 58 | E171: 57.5 | F171: 57.2 | G171: 57.4 | H171: 57.1 | I171: 57.4 | J171: 56.9 | K171: 56.5 | L171: 56 | M171: 55.7
A172: Siberian FD | B172: 26.9 | C172: 26.3 | D172: 21.8 | E172: 22.6 | F172: 21.1 | G172: 21.2 | H172: 89.9 | I172: 92.8 | J172: 91.4 | K172: 92.6 | L172: 92.3 | M172: 97
A173: Far Eastern FD | B173: 0.1 | C173: 0.1 | D173: 0.1 | E173: 5.8 | F173: 6 | G173: 6.9 | H173: 25.2 | I173: 26.4 | J173: 27.3 | K173: 27.3 | L173: 29.6 | M173: 30.5
A174: Continental shelf of the Russian Federation | B174: 24.4 | C174: 28.5 | D174: 31.9 | E174: 33.6 | F174: 65.5 | G174: 73.9 | H174: 94.7 | I174: 100.8 | J174: 104.3 | K174: 126.9 | L174: 161.2 | M174: 187.9
A175: Total | B175: 1216.3 | C175: 1217 | D175: 1212.5 | E175: =SUM(E168:E174) -> 1287.1 | F175: =SUM(F168:F174) -> 1325.1 | G175: =SUM(G168:G174) -> 1284.8 | H175: 1395.5 | I175: 1386.1 | J175: 1384.4 | K175: 1447 | L175: 1499.5 | M175: 1534.9
A176: Crude oil, mm tons
A177: Ural FD | B177: 1152 | C177: 1146 | D177: 1261.1 | E177: 1303.1 | F177: 1461.6 | G177: 1400.1 | H177: 1400.3 | I177: 1532.9 | J177: 1550.9 | K177: 1560.1 | L177: 1541.6 | M177: 1531.3
A178: North-Western FD | B178: 2.1 | C178: 13.5 | D178: 14.2 | E178: 15.7 | F178: 16.9 | G178: 17.3 | H178: 17.3 | I178: 4.8 | J178: 4.8 | K178: 4.8 | L178: 5.6 | M178: 19.8
A179: South FD and Nortern Caucasian FD | B179: 3.5 | C179: 4.5 | D179: 5.4 | E179: 8.8 | F179: 9.7 | G179: 10.6 | H179: 7.4 | I179: 7.3 | J179: 8 | K179: 7.9 | L179: 8 | M179: 7.9
A180: Volga FD | B180: 118.6 | C180: 134.3 | D180: 133.9 | E180: 133.3 | F180: 145.1 | G180: 144.5 | H180: 153.8 | I180: 156.2 | J180: 159 | K180: 159.9 | L180: 200.2 | M180: 202.5
A181: Siberian FD | B181: 31.3 | C181: 38.5 | D181: 44.6 | E181: 47.6 | F181: 58.3 | G181: 61.9 | H181: 86 | I181: 188.5 | J181: 191.4 | K181: 198.9 | L181: 205 | M181: 201.3
A182: Far Eastern FD | B182: 2.7 | C182: 2.7 | D182: 3.3 | E182: 45.8 | F182: 46 | G182: 51.1 | H182: 55.1 | I182: 55.1 | J182: 57.5 | K182: 57.6 | L182: 58.4 | M182: 54.6
A183: Continental shelf of the Russian Federation | B183: 47.3 | C183: 47.4 | D183: 47.4 | E183: 47.4 | F183: 47.4 | G183: 47.4 | H183: 47.4 | I183: 47.4 | J183: 47.4 | K183: 63.9 | L183: 63.2 | M183: 61.1
A184: Total | B184: 1357.5 | C184: 1386.9 | D184: 1509.9 | E184: =SUM(E177:E183) -> 1601.7 | F184: =SUM(F177:F183) -> 1785 | G184: =SUM(G177:G183) -> 1732.9 | H184: 1767.3 | I184: 1992.2 | J184: 2019 | K184: 2053.1 | L184: 2082 | M184: 2078.5
A185: * Excluding share of Gazprom Group in reserves of companies, investments in which are classified as joint operations.
A186: Note. Until 2016 hydrocarbon reserves are given under A+B+C1 classification, since 1 January 2016 – under A+B1+C1 classification. Under the new classification of Reserves and Resources of Oil and Flammable Gases, approved by the Ministry of Natural Resources and Environment of the Russian Federation, Decree No. 477 dated 1 November 2013 and effective from 1 January 2016, grades A+B1+C1 are explored reserves of high geological certainty and correspond to previously used A+B+C1.
A188: Back to Contents

Sheet Reserves of assoc. and JV
A1: Hydrocarbon reserves (Russian classification of reserves) of the associated and jointly controlled companies in Russia attributable to the share of Gazprom Group
A2: Metric units
B3: As at 31 December
B4: 2010* | C4: 2011* | D4: 2012 | E4: 2013 | F4: 2014 | G4: 2015 | H4: 2016
A5: Natural gas, bcm | B5: 645.4 | C5: 717.4 | D5: 732.2 | E5: 851.5 | F5: 971.7 | G5: 1035.5 | H5: 999.1
A6: Gas condensate, mm tonnes | B6: 57.8 | C6: 60.1 | D6: 62 | E6: 80.1 | F6: 97 | G6: 112.1 | H6: 104.5
A7: Crude oil, mm tonnes | B7: 611.8 | C7: 728.6 | D7: 518.3 | E7: 542 | F7: 575.4 | G7: 566.9 | H7: 571.5
A8: * Including share of Gazprom Group in reserves of companies, investments in which are classified as joint operations.
A10: Oil equivalent
B11: As at 31 December
B12: 2010* | C12: 2011* | D12: 2012 | E12: 2013 | F12: 2014 | G12: 2015 | H12: 2016
A13: Natural gas, mm boe | B13: =B5*6.49 -> 4188.646 | C13: 4655.926 | D13: 4751.978 | E13: 5526.235 | F13: 6306.333 | G13: 6720.395 | H13: =H5*6.49 -> 6484.159
A14: Gas condensate, mm boe | B14: =B6*8.18 -> 472.804 | C14: 491.618 | D14: 507.16 | E14: 655.218 | F14: 793.46 | G14: 916.978 | H14: =H6*8.18 -> 854.81
A15: Crude oil, mm boe | B15: 4484.5 | C15: 5340.6 | D15: 3799.1 | E15: 3972.9 | F15: 4217.7 | G15: 4155.4 | H15: =H7*7.33 -> 4189.095
A16: Total, mm boe | B16: =B13+B14+B15 -> 9145.95 | C16: 10488.144 | D16: 9058.238 | E16: 10154.353 | F16: 11317.493 | G16: 11792.773 | H16: =H13+H14+H15 -> 11528.064
A17: * Including share of Gazprom Group in reserves of companies, investments in which are classified as joint operations.
A18: Note. For management accounting purposes, Gazprom Group measures hydrocarbon reserves and production in metric units. In this Factbook, gas reserves are converted from metric units to barrels of oil equivalent at a ratio of 1,000 cubic metres to 6.49 boe. For data comparability, the figures as at 31 December 2015 and earlier have been recalculated using the above ratio and differ from figures in Gazprom in Figures 2015.
A20: Back to Contents

Sheet Change in reserves
A1: Change in Gazprom Group’s hydrocarbon reserves (Russian classification of reserves) in Russia, 2013–2016
A2: (including share in reserves of companies, investments in which are classified as joint operations)
B3: Natural gas | C3: Gas condensate* | D3: Crude oil
B4: bcm | C4: mm tonnes | D4: mm tonnes
A5: Reserves as at 31 December 2012 | B5: 35169.8 | C5: 1386.1 | D5: 1992.2
A6: Additions to reserves as a result of exploration | B6: 647.8 | C6: 5.4 | D6: 48.2
A7: Transfer of reserves discovered in 2013 to the Undistributed Subsoil Fund of Russia** and to other companies, acquisition from other companies | B7: -137.2 | C7: -1.9 | D7: -1.4
A8: Receipt of licenses, including | B8: 484.1 | C8: 3.6 | D8: –
A9: due to new fields discovery*** | B9: 0.9 | C9: 0.1 | D9: –
A10: due to resolution of the Russian government, without tendering process | B10: 483.2 | C10: 3.5 | D10: –
A11: Return of licenses | B11: – | C11: – | D11: –
A12: Acquisition of assets | B12: 13.7 | C12: 0.5 | D12: –
A13: Disposal of assets | B13: – | C13: – | D13: –
A14: Revaluation | B14: 5.6 | C14: 1.2 | D14: 22.3
A15: Production (including losses) | B15: -487.2**** | C15: -10.5 | D15: -42.3
A16: Reserves as at 31 December 2013 | B16: 35696.6 | C16: 1384.4 | D16: 2019
A17: Additions to reserves as a result of exploration | B17: 822.5 | C17: 114.2 | D17: 24.7
A18: Transfer of reserves discovered in 2013 to the Undistributed Subsoil Fund of Russia** and to other companies, acquisition from other companies | B18: -91.1 | C18: -6.9 | D18: 2.3
A19: Receipt of licenses, including | B19: 182.3 | C19: 2.8 | D19: 5.8
A20: due to new fields discovery*** | B20: – | C20: – | D20: –
A21: due to resolution of the Russian government, without tendering process | B21: – | C21: – | D21: –
A22: Return of licenses | B22: – | C22: – | D22: -0.1
A23: Acquisition of assets | B23: – | C23: – | D23: –
A24: Disposal of assets | B24: – | C24: – | D24: –
A25: Revaluation | B25: -66 | C25: -37 | D25: 44.7
A26: Production (including losses) | B26: -442.9**** | C26: -10.5 | D26: -43.3
A27: Reserves as at 31 December 2014 | B27: 36101.4 | C27: 1447 | D27: 2053.1
A28: Additions to reserves as a result of exploration | B28: 531.1 | C28: 68.5 | D28: 20.6
A29: Transfer of reserves discovered in 2013 to the Undistributed Subsoil Fund of Russia** and to other companies, acquisition from other companies | B29: -62.9 | C29: -4.7 | D29: 0.9
A30: Receipt of licenses, including | B30: – | C30: – | D30: 4.2
A31: due to new fields discovery*** | B31: – | C31: – | D31: –
A32: due to resolution of the Russian government, without tendering process | B32: – | C32: – | D32: –
A33: Return of licenses | B33: – | C33: – | D33: –
A34: Acquisition of assets | B34: – | C34: – | D34: –
A35: Disposal of assets | B35: – | C35: – | D35: –
A36: Revaluation | B36: -5 | C36: -0.1 | D36: 47.1
A37: Production (including losses) | B37: -417.3**** | C37: -11.2 | D37: -43.9
A38: Reserves as at 31 December 2015 | B38: 36147.3 | C38: 1499.5 | D38: 2082
A39: Additions to reserves as a result of exploration | B39: 457.4 | C39: 38 | D39: 19.3
A40: Transfer of reserves discovered in 2013 to the Undistributed Subsoil Fund of Russia** and to other companies, acquisition from other companies | B40: -2.4 | C40: -1.7 | D40: -2
A41: Receipt of licenses, including | B41: 257.5 | C41: 10.9 | D41: 15
A42: due to new fields discovery*** | B42: − | C42: − | D42: −
A43: due to resolution of the Russian government, without tendering process | B43: − | C43: − | D43: −
A44: Return of licenses | B44: -0.6 | C44: − | D44: −
A45: Acquisition of assets | B45: − | C45: − | D45: −
A46: Disposal of assets | B46: − | C46: − | D46: −
A47: Revaluation | B47: 2 | C47: -0.1 | D47: 11.1
A48: Production (including losses) | B48: -417.3**** | C48: -11.7 | D48: -46.9
A49: Reserves as at 31 December 2016 | B49: 36443.9 | C49: 1534.9 | D49: 2078.5
A50: * Any changes in gas condensate reserves due to production are recognized as converted into stable gas condensate (C5+). The production volume of unstable gas condensate of Gazprom Group see in Production section.
A51: ** Under the law of the Russian Federation, the subsoil user does not have any vested right to develop reserves discovered in areas covered by exploration licenses or beyond the licensed areas. Such reserves shall be transferred to the Undistributed Subsoil Fund of the Russian Federation. Subsequently the subsoil user has a preference right to receive a license for their development.
A52: *** Including licenses received by Gazprom Group in previous years.
A53: **** Excluding dissolved gas.
A55: Back to Contents

Sheet License areas
A1: Licenses
A2: License areas set out by federal districts of the Russian Federation, as at 31 December 2016, thousand square km
A3: License category* | B3: Ural FD | C3: Northwest FD | D3: South FD and North Caucasian FD | E3: Volga FD | F3: Siberiam FD | G3: Far Eastern FD | H3: Continental shelf of the Russian Federation
A4: Gazprom Group
A5: Licenses for prospecting, exploration and production of hydrocarbons (SEPL) | B5: 26.5 | C5: − | D5: 2.8 | E5: 2.6 | F5: 46.1 | G5: − | H5: 319.2
A6: Licenses for exploration and production of hydrocarbons (EPL) | B6: 69 | C6: 1.5 | D6: 5.3 | E6: 2.8 | F6: 20.8 | G6: 12.6 | H6: 12.1
A7: Licenses for geological survey (SL) | B7: 16.8 | C7: 0.2 | D7: 0.3 | E7: 3.2 | F7: 3.8 | G7: − | H7: −
A8: Total | B8: 112.3 | C8: 1.7 | D8: 8.4 | E8: 8.6 | F8: 70.7 | G8: 12.6 | H8: 331.3
A9: Companies investments in which are classified as joint operations
A10: Licenses for prospecting, exploration and production of hydrocarbons (SEPL) | B10: − | C10: − | D10: − | E10: − | F10: − | G10: − | H10: −
A11: Licenses for exploration and production of hydrocarbons (EPL) | B11: 4.1 | C11: − | D11: − | E11: − | F11: 18.9 | G11: − | H11: −
A12: Licenses for geological survey (SL) | B12: 0.1 | C12: − | D12: − | E12: − | F12: − | G12: − | H12: −
A13: Total | B13: 4.2 | C13: − | D13: − | E13: − | F13: 18.9 | G13: − | H13: −
A14: * License categories in accordance with Russian legislation.
A16: Back to Contents

Sheet Licenses
A1: Licenses for the main hydrocarbon fields as at 31 December 2016
A2: Field name | B2: Year of production start | C2: Subsidiary – license holder | D2: Gazprom Group share*,% | E2: Field type** | F2: License category*** | G2: License expiration year****
A3: Gazprom Group
A4: Western Siberia (Ural FD)
A5: Urengoyskoye | B5: 1978 | C5: ООО Gazprom Dobycha Urengoy | D5: 1 | E5: OGC | F5: EPL | G5: 2038
A6: Severo-Urengoyskoye | B6: 1987 | E6: OGC | F6: EPL | G6: 2030
A7: Yen-Yakhinskoye | B7: 1985 | E7: OGC | F7: EPL | G7: 2038
A8: Pestsovoye | B8: 2004 | E8: OGC | F8: EPL | G8: 2041
A9: Yamburgskoye | B9: 1991 | C9: ООО Gazprom Dobycha Yamburg | D9: 1 | E9: OGC | F9: EPL | G9: 2054
A10: Zapolyarnoye | B10: 2001 | E10: OGC | F10: EPL | G10: 2114
A11: Tazovskoye | B11: – | E11: OGC | F11: SEPL | G11: 2025
A12: Severo-Parusovoye | B12: – | E12: OGC | F12: EPL | G12: 2027
A13: Medvezhye | B13: 1972 | C13: ООО Gazprom Dobycha Nadym | D13: 1 | E13: OGC | F13: EPL | G13: 2086
A14: Yamsoveiskoye | B14: 1997 | E14: OGC | F14: EPL | G14: 2039
A15: Ubileynoye | B15: 1992 | E15: OGC | F15: EPL | G15: 2018
A16: Kharasaveiskoye | B16: – | E16: GC | F16: EPL | G16: 2033
A17: Bovanenkovskoye | B17: 2012 | E17: OGC | F17: EPL | G17: 2042
A18: Novoportovskoye | B18: 2012***** | C18: OOO Gazpromneft-Yamal | D18: 1 | E18: OGC | F18: EPL | G18: 2150
A19: Komsomolskoye | B19: 1993 | C19: ООО Gazprom Dobycha Noyabrsk | D19: 1 | E19: OGC | F19: EPL | G19: 2049
A20: Yety-Purovskoye | B20: 2004 | E20: OGC | F20: EPL | G20: 2038
A21: Zapadno-Tarkosalynskoye | B21: 1996 | E21: OGC | F21: SEPL | G21: 2116
A22: Gubkinskoye | B22: 1999 | C22: ZAO Purgaz | D22: 0.51 | E22: OGC | F22: EPL | G22: 2033
A23: Uzhno-Russkoye | B23: 2007 | C23: OAO Severneftegazprom | D23: 50,001% (of ordinary shares) | E23: OGC | F23: EPL | G23: 2043
A24: Zapadno-Tambeyskoye | B24: – | C24: PJSC Gazprom | E24: OGC | F24: EPL | G24: 2028
A25: Kruzenshternskoye | B25: – | E25: GC | F25: EPL | G25: 2028
A26: Malyginskoye | B26: – | E26: GC | F26: EPL | G26: 2028
A27: Severo-Tambeyskoye | B27: – | E27: GC | F27: EPL | G27: 2028
A28: Tasiyskoye | B28: – | E28: GC | F28: EPL | G28: 2028
A29: Antypajutinskoye | B29: – | E29: G | F29: EPL | G29: 2028
A30: Tota-Yakhinskoe | B30: – | E30: G | F30: EPL | G30: 2028
A31: Sugmutskoye | B31: 1995 | C31: AO Gazpromneft-Noyabrskneftegaz | D31: 1 | E31: O | F31: EPL | G31: 2089
A32: Sutorminskoye | B32: 1982 | E32: OGC | F32: EPL | G32: 2067
A33: Muravlenkovskoye | B33: 1982 | E33: OG | F33: EPL | G33: 2072
A34: Sporyshevskoye | B34: 1996 | E34: O | F34: EPL | G34: 2083
A35: Southern part of Priobskoye | B35: 1999 | C35: OOO Gazpromneft-Khantos | D35: 1 | E35: O | F35: EPL | G35: 2038
A36: Vyngapurovskoye (Khanty-Mansi Autonomous Area) | B36: 1982 | C36: OOO Zapolyarneft | D36: 1 | E36: OGC | F36: EPL | G36: 2034
A37: Southern Russia (South FD)
A38: Astrakhanskoye | B38: 1986 | C38: ООО Gazprom Dobycha Astrakhan | D38: 1 | E38: GC | F38: EPL | G38: 2019
A39: Zapadno-Astrakhanskoye | B39: – | C39: PJSC Gazprom | E39: GC | F39: SEPL | G39: 2029
A40: South Ural region (Volga FD)
A41: Orenburgskoye | B41: 1974 | C41: ООО Gazprom Dobycha Orenburg | D41: 1 | E41: OGC | F41: EPL | G41: 2038
A42: Estern section of Orenburg OGC field | B42: 1994***** | C42: ООО Gazprom Neft Orenburg | D42: 1 | E42: OGC | F42: EPL | G42: 2138
A43: Eastern Siberia and the Far East (Siberian and Far Eastern FDs)
A44: Chayandinskoye | B44: – | C44: PJSC Gazprom | E44: OGC | F44: EPL | G44: 2028
A45: Kovyktinskoye (including Khandinkaya square) | B45: – | E45: GC | F45: EPL | G45: 2037
A46: Tas-Yuryakhskoye | B46: – | E46: OGC | F46: EPL | G46: 2031
A47: Sobolokh-Nedzhelinskoye | B47: – | E47: GC | F47: EPL | G47: 2031
A48: Part of Srednetyungskoye | B48: – | E48: GC | F48: EPL | G48: 2031
A49: Verkhnevilyuchanskoye | B49: – | E49: OGC | F49: EPL | G49: 2031
A50: Chikanskoye | B50: – | E50: GC | F50: EPL | G50: 2028
A51: Sobinskoye | B51: – | C51: ООО Gazprom dobycha Krasnodar | D51: 1 | E51: OGC | F51: SEPL | G51: 2028
A52: Continental shelf of the Russian Federation
A53: Shtokmanovskoye (including western part) | B53: – | C53: PJSC Gazprom | E53: GC | F53: EPL | G53: 2043
A54: Kirinskoye | B54: 2013 | E54: GC | F54: EPL | G54: 2028
A55: Yuzhno-Kirinskoye | B55: – | E55: GC | F55: SEPL | G55: 2039
A56: Mynginskoe | B56: – | E56: GC | F56: SEPL | G56: 2039
A57: Ledovoye | B57: – | E57: GC | F57: EPL | G57: 2033
A58: Rusanovskoye | B58: – | E58: GC | F58: SEPL | G58: 2043
A59: Ludlovskoye | B59: – | E59: G | F59: SEPL | G59: 2043
A60: Leningradskoye | B60: – | E60: GC | F60: SEPL | G60: 2043
A61: Kamennomysskoye-more | B61: – | C61: OOO Gazprom dobycha Yamburg | D61: 1 | E61: G | F61: EPL | G61: 2057
A62: Severo-Kamennomysskoye | B62: – | E62: GC | F62: EPL | G62: 2076
A63: Semakovskoye | B63: – | E63: G | F63: EPL | G63: 2028
A64: Prirazlomnoye | B64: 2013 | C64: OOO Gazprom Neft shelf | D64: 1 | E64: O | F64: EPL | G64: 2043
A65: Dolginskoye | B65: – | C65: OOO Gazpromneft-Sakhalin | D65: 1 | E65: O | F65: EPL | G65: 2035
A66: Companies, investments in which are classified as joint operations
A67: Western Siberia (Ural FD)
A68: Zapadno-Salymskoye | B68: 2004 | C68: Salym Petroleum Development N.V. | D68: 0.5 | E68: O | F68: EPL | G68: 2130
A69: Sovetskoye (Khanty- Mansi Autonomous Area) | B69: 1966 | C69: OAO Tomskneft VNC | D69: 0.5 | E69: O | F69: EPL | G69: 2145
A70: Eastern Siberia and the Far East (Siberian and Far Eastern FDs)
A71: Krapivinskoye | B71: 1984 | C71: OAO Tomskneft VNC | D71: 0.5 | E71: O | F71: EPL | G71: 2044
A72: Sovetskoye (Tomsk Region) | B72: 1966 | E72: O | F72: EPL | G72: 2038
A73: Pervomayskoye (Tomsk Region) | B73: 1981 | E73: O | F73: EPL | G73: 2041
A74: Luginetskoye | B74: 1982 | E74: OGC | F74: EPL | G74: 2039
A75: Associated and jointly controlled companies
A76: Western Siberia (Ural FD)
A77: Vostochno-Messoyakhskoe | B77: 2013***** | C77: AO Messoyakhaneftegaz | D77: 0.5 | E77: OGC | F77: SEPL | G77: 2140
A78: Zapadno-Messoyakhskoe | B78: – | E78: OG | F78: SEPL | G78: 2020
A79: Eastern Siberia and the Far East (Siberian and Far Eastern FDs)
A80: Kuymbinskoye | B80: 2010***** | C80: OOO Slavneft-Krasnoyarskneftegas | D80: 0.5 | E80: OGC | F80: SEPL | G80: 2171
A81: Piltun-Astokhskoe | B81: 1999 | C81: Sakhalin Energy Investment Company Ltd. | D81: 50% + 1 share | E81: OGC | F81: SEPL | G81: 2021
A82: Lunskoe | B82: 2009 | E82: OGC | F82: SEPL | G82: 2021
A83: * The aggregate share of the Group in the authorized capital of the investment objects, as reflected in the consolidated financial statements of Gazprom Group under IFRS.
A84: ** In accordance with the current Russian state classification: OGC — oil, gas, condensate field; OG — oil and gas field; GC — gas condensate field; G — gas field; O — oil field.
A85: *** Russian legislation provides for several types of licenses applicable to the study, exploration and production of natural resources, including: licenses for geological survey (SL); licenses for exploration and production of hydrocarbons (EPL); and licenses for geological survey, exploration and production of hydrocarbons (SEPL). Abbreviations are stated according to the classification determined by the Russian legislation.
A86: **** While license holders of Gazprom Group meet the main terms and conditions of license agreements, they have a right to prolong current licenses to complete exploration and development of fields. Gazprom plans to prolong licenses for the period till the completion of profitable development of fields.
A87: ***** Pilot production.
A89: Back to Contents

Sheet Production
A1: Production
A2: Hydrocarbon production of Gazprom Group in Russia
A3: (including share in production of companies investments in which are classified as joint operations)
A4: Metric units
B5: For the year ended 31 December
B6: 2005* | C6: 2006* | D6: 2007* | E6: 2008* | F6: 2009* | G6: 2010* | H6: 2011* | I6: 2012 | J6: 2013 | K6: 2014 | L6: 2015 | M6: 2016
A7: Natural and associated gas, bcm | B7: 555 | C7: 555.95 | D7: 548.55 | E7: 549.73 | F7: 461.52 | G7: 508.59 | H7: 513.17 | I7: 487.99 | J7: 488.39 | K7: 444.9 | L7: 419.52 | M7: 420.13
A8: Gas condensate, mm tonnnes | B8: 11.5 | C8: 11.37 | D8: 11.27 | E8: 10.93 | F8: 10.07 | G8: 11.29 | H8: 12.07 | I8: 12.85 | J8: 14.66 | K8: 14.49 | L8: 15.34 | M8: 15.85
A9: Crude oil production, mm tonnes | B9: 9.49 | C9: 34.02 | D9: 33.98 | E9: 32.05 | F9: 31.62 | G9: 32.01 | H9: 32.28 | I9: 42.26 | J9: 42.41 | K9: 43.53 | L9: 44.04 | M9: 47.15
A10: * Excluding share of Gazprom Group in production of companies, investments in which are classified as joint operations.
A12: Oil equivalent
B13: For the year ended 31 December
B14: 2005* | C14: 2006* | D14: 2007* | E14: 2008* | F14: 2009* | G14: 2010* | H14: 2011* | I14: 2012 | J14: 2013 | K14: 2014 | L14: 2015 | M14: 2016
A15: Natural gas and APG production, mm boe | B15: =B7*6.49 -> 3601.95 | C15: 3608.1155 | D15: 3560.0895 | E15: 3567.7477 | F15: 2995.2648 | G15: 3300.7491 | H15: 3330.4733 | I15: 3167.06 | J15: 3169.65 | K15: 2887.4 | L15: 2722.68 | M15: 2726.64
A16: Gas condensate, mm boe | B16: 94.07 | C16: 93.01 | D16: 92.19 | E16: 89.41 | F16: 82.37 | G16: 92.35 | H16: 98.73 | I16: 105.11 | J16: 119.92 | K16: 118.53 | L16: 125.48 | M16: 129.65
A17: Crude oil production, mm boe | B17: 69.56 | C17: 249.37 | D17: 249.07 | E17: 234.93 | F17: 231.77 | G17: 234.63 | H17: 236.61 | I17: 309.77 | J17: 310.87 | K17: 319.07 | L17: 322.81 | M17: 345.61
A18: Total, mm boe | B18: =B15+B16+B17 -> 3765.58 | C18: 3950.4955 | D18: 3901.3495 | E18: 3892.0877 | F18: 3309.4048 | G18: 3627.7291 | H18: 3665.8133 | I18: 3581.94 | J18: 3600.44 | K18: 3325 | L18: 3170.97 | M18: 3201.91
A19: * Excluding share of Gazprom Group in production of companies, investments in which are classified as joint operations.
A20: Note. For management accounting purposes, Gazprom Group measures hydrocarbon reserves and production in metric units. In this Factbook, gas reserves are converted from metric units to barrels of oil equivalent at a ratio of 1,000 cubic metres to 6.49 boe. For data comparability, the figures as at 31 December 2015 and earlier have been recalculated using the above ratio and differ from figures in Gazprom in Figures 2015.
A22: Daily average hydrocarbon production of Gazprom Group in Russia
A23: (including share in production of companies investments in which are classified as joint operations)
B24: For the year ended 31 December
B25: 2005* | C25: 2006* | D25: 2007* | E25: 2008* | F25: 2009* | G25: 2010* | H25: 2011* | I25: 2012 | J25: 2013 | K25: 2014 | L25: 2015 | M25: 2016
A26: Natural and associated gas, mmcm / day | B26: 1520.55 | C26: 1523.15 | D26: 1502.88 | E26: 1501.99 | F26: 1264.4 | G26: 1393.4 | H26: 1405.9 | I26: 1333.3 | J26: 1338 | K26: 1218.9 | L26: 1149.4 | M26: 1147.9
A27: Gas condensate, thousand tonnes / day | B27: 31.51 | C27: 31.15 | D27: 30.88 | E27: 29.86 | F27: 27.6 | G27: 30.9 | H27: 33.1 | I27: 35.1 | J27: 40.2 | K27: 39.7 | L27: 42 | M27: 43.4
A28: Crude oil, thousand tonnes / day | B28: 26 | C28: 93.21 | D28: 93.1 | E28: 87.57 | F28: 86.6 | G28: 87.7 | H28: 88.4 | I28: 115.5 | J28: 116.2 | K28: 119.3 | L28: 120.7 | M28: 128.8
A29: * Excluding share of Gazprom Group in production of companies, investments in which are classified as joint operations.
A31: Gazprom Group’s hydrocarbon production in Russia
A32: (including share in production of companies investments in which are classified as joint operations)
B33: For the year ended 31 December
B34: 2005* | C34: 2006* | D34: 2007* | E34: 2008* | F34: 2009* | G34: 2010* | H34: 2011* | I34: 2012 | J34: 2013 | K34: 2014 | L34: 2015 | M34: 2016
A35: Natural and associated gas, bcm
A36: PJSC Gazprom and its major subsidiaries ** | B36: 539.35 | C36: 538.84 | D36: 530.51 | E36: 517.63 | F36: 425.02 | G36: 465.14 | H36: 464.81 | I36: 437.9 | J36: 436.29 | K36: 393.73 | L36: 368.2 | M36: 368.6
A37: PAO Gazprom Neft and its subsidiaries | B37: 0.55 | C37: 2.07 | D37: 1.77 | E37: 2.16 | F37: 2.08 | G37: 2.95 | H37: 7.33 | I37: 8.73 | J37: 11.36 | K37: 11.86 | L37: 12.53 | M37: 13.64
A38: ZAO Purgaz | B38: 15.1 | C38: 15.04 | D38: 15.02 | E38: 14.87 | F38: 11.84 | G38: 15.14 | H38: 15.37 | I38: 15.04 | J38: 14.62 | K38: 13.25 | L38: 12.7 | M38: 11.74
A39: OAO Severneftegazprom | B39: – | C39: – | D39: 1.25 | E39: 15.07 | F39: 22.58 | G39: 25.36 | H39: 25.66 | I39: 25.35 | J39: 25.12 | K39: 25.04 | L39: 25.05 | M39: 25.12
A40: Total (excluding share in production of companies, investments in which are classified as joint operations) | B40: 555 | C40: 555.95 | D40: 548.55 | E40: 549.73 | F40: 461.52 | G40: 508.59 | H40: 513.17 | I40: 487.02 | J40: 487.39 | K40: 443.88 | L40: 418.48 | M40: 419.1
A41: Companies, investments in which are classified as joint operations (attributable to the share of Gazprom Group) | B41: x | C41: x | D41: x | E41: x | F41: x | G41: x | H41: x | I41: 0.97 | J41: 1 | K41: 1.02 | L41: 1.04 | M41: 1.03
A42: Total (including share in production of companies, investments in which are classified as joint operations) | B42: x | C42: x | D42: x | E42: x | F42: x | G42: x | H42: x | I42: 487.99 | J42: 488.39 | K42: 444.9 | L42: 419.52 | M42: 420.13
A43: Gas condensate, mm tonnes
A44: PJSC Gazprom and its major subsidiaries ** | B44: 11.5 | C44: 11.37 | D44: 11.27 | E44: 10.93 | F44: 10.07 | G44: 11.29 | H44: 12.07 | I44: 12.84 | J44: 14.65 | K44: 14.47 | L44: 15.31 | M44: 15.83
A45: PAO Gazprom Neft and its subsidiaries | B45: – | C45: – | D45: – | E45: – | F45: – | G45: – | H45: – | I45: 0.01 | J45: 0.01 | K45: 0.02 | L45: 0.03 | M45: 0.02
A46: Total | B46: 11.5 | C46: 11.37 | D46: 11.27 | E46: 10.93 | F46: 10.07 | G46: 11.29 | H46: 12.07 | I46: 12.85 | J46: 14.66 | K46: 14.49 | L46: 15.34 | M46: 15.85
A47: Crude oil, mm tonnes
A48: PJSC Gazprom and its major subsidiaries ** | B48: 1.29 | C48: 1.3 | D48: 1.32 | E48: 1.27 | F48: 1.55 | G48: 1.85 | H48: 1.9 | I48: 1.7 | J48: 1.69 | K48: 1.73 | L48: 1.74 | M48: 1.55
A49: PAO Gazprom Neft and its subsidiaries | B49: 8.2 | C49: 32.72 | D49: 32.66 | E49: 30.78 | F49: 30.07 | G49: 30.16 | H49: 30.38 | I49: 31.63 | J49: 32.15 | K49: 33.56 | L49: 34.3 | M49: 37.74
A50: Total (excluding share in production of companies, investments in which are classified as joint operations) | B50: 9.49 | C50: 34.02 | D50: 33.98 | E50: 32.05 | F50: 31.62 | G50: 32.01 | H50: 32.28 | I50: 33.33 | J50: 33.84 | K50: 35.29 | L50: 36.04 | M50: 39.29
A51: Companies, investments in which are classified as joint operations (attributable to the share of Gazprom Group) | B51: x | C51: x | D51: x | E51: x | F51: x | G51: x | H51: x | I51: 8.93 | J51: 8.57 | K51: 8.24 | L51: 8 | M51: 7.86
A52: Total (including share in production of companies, investments in which are classified as joint operations) | B52: x | C52: x | D52: x | E52: x | F52: x | G52: x | H52: x | I52: 42.26 | J52: 42.41 | K52: 43.53 | L52: 44.04 | M52: 47.15
A53: * Excluding share of Gazprom Group in production of companies, investments in which are classified as joint operations.
A54: ** For the list of companies, see Glossary.
A56: Hydrocarbon production of Gazprom Group in Russia set out by Federal Districts
A57: (including share in production of companies investments in which are classified as joint operations)
B58: For the year ended 31 December
B59: 2005* | C59: 2006* | D59: 2007* | E59: 2008* | F59: 2009* | G59: 2010* | H59: 2011* | I59: 2012 | J59: 2013 | K59: 2014 | L59: 2015 | M59: 2016
A60: Natural and associated gas, bcm
A61: Ural FD | B61: 516.39 | C61: 517.88 | D61: 510.57 | E61: 512.17 | F61: 427.44 | G61: 471.68 | H61: 476.53 | I61: 450.96 | J61: 452.34 | K61: 409.96 | L61: 385.18 | M61: 385.46
A62: North-Western FD | B62: 2.82 | C62: 2.75 | D62: 2.75 | E62: 2.64 | F62: 2.54 | G62: 2.52 | H62: 2.4 | I62: 2.33 | J62: 2.38 | K62: 2.25 | L62: 2.14 | M62: 2.06
A63: South FD and Nortern Caucasian FD | B63: 13.55 | C63: 13.36 | D63: 13.37 | E63: 13.23 | F63: 10.76 | G63: 13.01 | H63: 13.21 | I63: 12.89 | J63: 11.86 | K63: 11.24 | L63: 11.15 | M63: 11.28
A64: Volga FD | B64: 18.72 | C64: 18.64 | D64: 18.7 | E64: 18.71 | F64: 17.85 | G64: 18.59 | H64: 17.94 | I64: 17.52 | J64: 17.27 | K64: 16.73 | L64: 16.22 | M64: 15.65
A65: Siberian FD | B65: 3.52 | C65: 3.32 | D65: 3.16 | E65: 2.98 | F65: 2.93 | G65: 2.79 | H65: 3.09 | I65: 4.29 | J65: 4.43 | K65: 4.23 | L65: 3.82 | M65: 4.55
A66: Far Eastern FD | B66: – | C66: – | D66: – | E66: – | F66: – | G66: – | H66: – | I66: – | J66: 0.2 | K66: 0.39 | L66: 0.4 | M66: 0.41
A67: Continental shelf of the Russian Federation | B67: – | C67: – | D67: – | E67: – | F67: – | G67: – | H67: – | I67: – | J67: 0.01 | K67: 0.1 | L67: 0.61 | M67: 0.72
A68: Total | B68: 555 | C68: 555.95 | D68: 548.55 | E68: 549.73 | F68: 461.52 | G68: 508.59 | H68: 513.17 | I68: 487.99 | J68: 488.39 | K68: 444.9 | L68: 419.52 | M68: 420.13
A69: Gas condensate, mm tonnes
A70: Ural FD | B70: 6.38 | C70: 6.29 | D70: 6.22 | E70: 5.95 | F70: 6.04 | G70: 6.34 | H70: 7.1 | I70: 8.04 | J70: 10.18 | K70: 10.3 | L70: 11.14 | M70: 11.59
A71: North-Western FD | B71: 0.25 | C71: 0.23 | D71: 0.21 | E71: 0.19 | F71: 0.17 | G71: 0.15 | H71: 0.14 | I71: 0.13 | J71: 0.14 | K71: 0.13 | L71: 0.12 | M71: 0.12
A72: South FD and Nortern Caucasian FD | B72: 4.24 | C72: 4.25 | D72: 4.27 | E72: 4.26 | F72: 3.35 | G72: 4.14 | H72: 4.22 | I72: 4.13 | J72: 3.78 | K72: 3.56 | L72: 3.51 | M72: 3.56
A73: Volga FD | B73: 0.27 | C73: 0.27 | D73: 0.28 | E73: 0.27 | F73: 0.26 | G73: 0.27 | H73: 0.25 | I73: 0.22 | J73: 0.19 | K73: 0.16 | L73: 0.15 | M73: 0.14
A74: Siberian FD | B74: 0.36 | C74: 0.33 | D74: 0.29 | E74: 0.26 | F74: 0.25 | G74: 0.39 | H74: 0.36 | I74: 0.33 | J74: 0.37 | K74: 0.31 | L74: 0.31 | M74: 0.31
A75: Far Eastern FD | B75: – | C75: – | D75: – | E75: – | F75: – | G75: – | H75: – | I75: – | J75: 0 | K75: 0.01 | L75: 0.01 | M75: 0.01
A76: Continental shelf of the Russian Federation | B76: – | C76: – | D76: – | E76: – | F76: – | G76: – | H76: – | I76: – | J76: – | K76: 0.02 | L76: 0.1 | M76: 0.12
A77: Total | B77: 11.5 | C77: 11.37 | D77: 11.27 | E77: 10.93 | F77: 10.07 | G77: 11.29 | H77: 12.07 | I77: 12.85 | J77: 14.66 | K77: 14.49 | L77: 15.34 | M77: 15.85
A78: Crude oil, mm tonnes
A79: Ural FD | B79: 8.43 | C79: 31.92 | D79: 31.74 | E79: 29.6 | F79: 28.91 | G79: 28.73 | H79: 28.66 | I79: 32.95 | J79: 32.7 | K79: 32.83 | L79: 32.39 | M79: 34.45
A80: North-Western FD | B80: 0.09 | C80: 0.07 | D80: 0.08 | E80: 0.07 | F80: 0.06 | G80: 0.06 | H80: 0.05 | I80: 0.04 | J80: 0.05 | K80: 0.03 | L80: 0.04 | M80: 0.03
A81: South FD and Nortern Caucasian FD | B81: 0.12 | C81: 0.11 | D81: 0.08 | E81: 0.08 | F81: 0.12 | G81: 0.16 | H81: 0.16 | I81: 0.16 | J81: 0.14 | K81: 0.11 | L81: 0.09 | M81: 0.09
A82: Volga FD | B82: 0.56 | C82: 0.6 | D82: 0.64 | E82: 0.68 | F82: 0.7 | G82: 0.69 | H82: 0.75 | I82: 1.23 | J82: 1.77 | K82: 2.46 | L82: 2.76 | M82: 2.85
A83: Siberian FD | B83: 0.29 | C83: 1.32 | D83: 1.44 | E83: 1.62 | F83: 1.83 | G83: 2.37 | H83: 2.66 | I83: 7.88 | J83: 7.75 | K83: 7.84 | L83: 7.87 | M83: 7.58
A84: Far Eastern FD | B84: – | C84: – | D84: – | E84: – | F84: – | G84: – | H84: – | I84: – | J84: – | K84: – | L84: 0 | M84: –
A85: Continental shelf of the Russian Federation | B85: – | C85: – | D85: – | E85: – | F85: – | G85: – | H85: – | I85: – | J85: – | K85: 0.26 | L85: 0.89 | M85: 2.15
A86: Total | B86: 9.49 | C86: 34.02 | D86: 33.98 | E86: 32.05 | F86: 31.62 | G86: 32.01 | H86: 32.28 | I86: 42.26 | J86: 42.41 | K86: 43.53 | L86: 44.04 | M86: 47.15
A87: * Excluding share of Gazprom Group in production of companies, investments in which are classified as joint operations.
A89: Useful life of APG by Gazprom Group in Russia
A90: (excluding share in production of companies investments in which are classified as joint operations)
B91: For the year ended 31 December
C92: 2006 | D92: 2007 | E92: 2008 | F92: 2009 | G92: 2010 | H92: 2011 | I92: 2012 | J92: 2013 | K92: 2014 | L92: 2015 | M92: 2016
A93: APG utilisation, bcm
A94: PJSC Gazprom and its major subsidiaries* | C94: 1.7 | D94: 1.7 | E94: 1.6 | F94: 1.7 | G94: 1.8 | H94: 2 | I94: 1.3 | J94: 1.3 | K94: 1.4 | L94: 1.9 | M94: 1.8
A95: PAO Gazprom Neft and its subsidiaries | C95: 2.1 | D95: 1.7 | E95: 2.2 | F95: 2.1 | G95: 2.5 | H95: 2.7 | I95: 4.2 | J95: 5.4 | K95: 6.2 | L95: 6.5 | M95: 7.6
A96: Total | C96: 3.8 | D96: 3.4 | E96: 3.8 | F96: 3.8 | G96: 4.3 | H96: 4.7 | I96: 5.5 | J96: 6.7 | K96: 7.6 | L96: 8.4 | M96: 9.4
A97: Level of APG utilisation, %
A98: PJSC Gazprom and its major subsidiaries* | C98: 81.2 | D98: 82.8 | E98: 83.3 | F98: 81.8 | G98: 81.6 | H98: 87 | I98: 83.2 | J98: 90.9 | K98: 93.5 | L98: 95.6 | M98: 97.8
A99: PAO Gazprom Neft and its subsidiaries | C99: 45 | D99: 35.7 | E99: 46.8 | F99: 48.1 | G99: 55.3 | H99: 58.8 | I99: 65.7 | J99: 79.5 | K99: 80.5 | L99: 79.6 | M99: 79.2
A100: Total | C100: 56.6 | D100: 49.7 | E100: 57.7 | F100: 59.1 | G100: 64.1 | H100: 68.4 | I100: 69.2 | J100: 81.4 | K100: 82.9 | L100: 82.7 | M100: 82.2
A101: * For the list of companies, see Glossary.
A103: Back to Contents

Sheet Production of the assoc. and JV
A1: Hydrocarbon production of the associated and jointly controlled companies in Russia attributable to the share of Gazprom Group
A2: Metric units
B3: For the year ended 31 December
B4: 2007* | C4: 2008* | D4: 2009* | E4: 2010* | F4: 2011* | G4: 2012 | H4: 2013 | I4: 2014 | J4: 2015 | K4: 2016
A5: Natural and associated gas, bcm | B5: 8.5 | C5: 11 | D5: 13.6 | E5: 17.6 | F5: 11.3 | G5: 11.9 | H5: 13 | I5: 18.2 | J5: 25.5 | K5: 27.2
A6: Gas condensate, mm tonnnes | B6: 0.7 | C6: 0.7 | D6: 1.2 | E6: 1.6 | F6: 1 | G6: 1.1 | H6: 1.3 | I6: 2.3 | J6: 4.7 | K6: 5.2
A7: Crude oil production, mm tonnes | B7: 11.3 | C7: 16.3 | D7: 19.2 | E7: 20.7 | F7: 20.5 | G7: 10.8 | H7: 10.2 | I7: 10 | J7: 9.6 | K7: 9.9
A8: * Including share of Gazprom Group in production of companies, investments in which are classified as joint operations.
A10: Oil equivalent
B11: For the year ended 31 December
B12: 2007* | C12: 2008* | D12: 2009* | E12: 2010* | F12: 2011* | G12: 2012 | H12: 2013 | I12: 2014 | J12: 2015 | K12: 2016
A13: Natural gas and APG production, mm boe | B13: =B5*6.49 -> 55.165 | C13: 71.39 | D13: 88.264 | E13: 114.224 | F13: 73.337 | G13: 77.231 | H13: 84.37 | I13: 118.118 | J13: 165.495 | K13: =K5*6.49 -> 176.528
A14: Gas condensate, mm boe | B14: 5.7 | C14: 5.7 | D14: 9.8 | E14: 13.1 | F14: 8.2 | G14: 9 | H14: 10.6 | I14: 18.8 | J14: 38.4 | K14: =K6*8.18 -> 42.536
A15: Crude oil production, mm boe | B15: 82.8 | C15: 119.5 | D15: 140.7 | E15: 151.7 | F15: 150.3 | G15: 79.2 | H15: 74.8 | I15: 73.3 | J15: 70.4 | K15: =K7*7.33 -> 72.567
A16: Total, mm boe | B16: =B13+B14+B15 -> 143.665 | C16: 196.59 | D16: 238.764 | E16: 279.024 | F16: 231.837 | G16: 165.431 | H16: 169.77 | I16: 210.218 | J16: 274.295 | K16: =K13+K14+K15 -> 291.631
A17: * Excluding share of Gazprom Group in production of companies, investments in which are classified as joint operations.
A18: Note. For management accounting purposes, Gazprom Group measures hydrocarbon reserves and production in metric units. In this Factbook, gas reserves are converted from metric units to barrels of oil equivalent at a ratio of 1,000 cubic metres to 6.49 boe. For data comparability, the figures as at 31 December 2015 and earlier have been recalculated using the above ratio and differ from figures in Gazprom in Figures 2015.
A20: Back to Contents

Sheet Explor. and drill. in Russia
A1: Geological exploration, production drilling and production capacity
A2: Key figures of Gazprom Group’s geological exploration activities
A3: (excluding companies, investments in which are classified as joint operations)
B4: For the year ended 31 December
B5: 2005 | C5: 2006 | D5: 2007 | E5: 2008 | F5: 2009 | G5: 2010 | H5: 2011 | I5: 2012 | J5: 2013 | K5: 2014 | L5: 2015 | M5: 2016
A6: Exploration drilling, thousand m | B6: 136.3 | C6: 177.7 | D6: 207.6 | E6: 284.9 | F6: 163.7 | G6: 204.9 | H6: 157.7 | I6: 126.4 | J6: 146.4 | K6: 165.4 | L6: 143.6 | M6: 111.6 | O6: 126.4 | P6: 146.4 | Q6: 165.4 | R6: 143.6 | S6: 111.6
A7: Completed exploration wells, units | B7: 44 | C7: 62 | D7: 39 | E7: 80 | F7: 75 | G7: 82 | H7: 60 | I7: 54 | J7: 53 | K7: 41 | L7: 43 | M7: 40 | O7: 54 | P7: 53 | Q7: 41 | R7: 43 | S7: 40
A8: including productive wells | B8: 35 | C8: 50 | D8: 20 | E8: 50 | F8: 43 | G8: 64 | H8: 45 | I8: 46 | J8: 37 | K8: 31 | L8: 38 | M8: 34 | O8: 46 | P8: 37 | Q8: 31 | R8: 38 | S8: 34
A9: Seismic exploration 2D, thousand linear km | B9: 9.8 | C9: 9.2 | D9: 6.4 | E9: 12.4 | F9: 14.7 | G9: 18.5 | H9: 2.8 | I9: 1.9 | J9: 1.4 | K9: 6.6 | L9: 0.3 | M9: 1.1 | O9: 1.9 | P9: 1.4 | Q9: 6.6 | R9: 0.3 | S9: 1.1
A10: Seismic exploration 3D, thousand square km | B10: 3.2 | C10: 7.9 | D10: 5.7 | E10: 6.6 | F10: 9.5 | G10: 10.8 | H10: 8.7 | I10: 8.4 | J10: 13.3 | K10: 12.6 | L10: 20 | M10: 20.6 | O10: 8.4 | P10: 13.3 | Q10: 12.6 | R10: 20 | S10: 20.6
A11: Reserves growth due to geological exploration, mm boe | B11: 3706.2 | C11: 3961.4 | D11: 3712.7 | E11: 3889.2 | F11: 3498 | G11: 4100 | H11: 4978.8 | I11: 3955.5 | J11: 4183.5 | K11: 5942.2 | L11: 3835.1 | M11: 3404 | O11: 3955.5 | P11: 4183.5 | Q11: 5942.2 | R11: 3835.1 | S11: 3404
A12: Drilling efficiency, boe / m | B12: 27087.5 | C12: 22072.3 | D12: 17883.8 | E12: 13651.2 | F12: 21368.6 | G12: 20009.9 | H12: 31575.1 | I12: 31293.5 | J12: 28575.8 | K12: 35926.2 | L12: 26706.8 | M12: 30501.8 | O12: 31293.5 | P12: 28575.8 | Q12: 35926.2 | R12: 26706.8 | S12: 30501.8
A14: Key figures of geological exploration activities of companies, investments in which are classified as joint operations
B15: For the year ended 31 December
B16: 2005 | C16: 2006 | D16: 2007 | E16: 2008 | F16: 2009 | G16: 2010 | H16: 2011 | I16: 2012 | J16: 2013 | K16: 2014 | L16: 2015 | M16: 2016
A17: Exploration drilling, thousand m | B17: x | C17: x | D17: x | E17: x | F17: x | G17: x | H17: x | I17: 14 | J17: 11.6 | K17: 13.1 | L17: 3.2 | M17: 7.4 | O17: 14 | P17: 11.6 | Q17: 13.1 | R17: 3.2 | S17: 7.4
A18: Completed exploration wells, units | B18: x | C18: x | D18: x | E18: x | F18: x | G18: x | H18: x | I18: 5 | J18: 5 | K18: 4 | L18: 1 | M18: 2 | O18: 5 | P18: 5 | Q18: 4 | R18: 1 | S18: 2
A19: including productive wells | B19: x | C19: x | D19: x | E19: x | F19: x | G19: x | H19: x | I19: 4 | J19: 3 | K19: 3 | L19: 1 | M19: 1 | O19: 4 | P19: 3 | Q19: 3 | R19: 1 | S19: 1
A20: Seismic exploration 2D, thousand linear km | B20: x | C20: x | D20: x | E20: x | F20: x | G20: x | H20: x | I20: 481 | J20: – | K20: – | L20: – | M20: – | O20: 481 | P20: – | Q20: – | R20: – | S20: −
A21: Seismic exploration 3D, thousand square km | B21: x | C21: x | D21: x | E21: x | F21: x | G21: x | H21: x | I21: 1085 | J21: 858 | K21: 494 | L21: 459 | M21: 130 | O21: 1085 | P21: 858 | Q21: 494 | R21: 459 | S21: 130
A23: Gazprom Group’s production drilling
A24: (excluding companies, investments in which are classified as joint operations)
B25: For the year ended 31 December
B26: 2005 | C26: 2006 | D26: 2007 | E26: 2008 | F26: 2009 | G26: 2010 | H26: 2011 | I26: 2012 | J26: 2013 | K26: 2014 | L26: 2015 | M26: 2016
A27: Production wells, completed construction, units
A28: natural gas | B28: 248 | C28: 156 | D28: 204 | E28: 143 | F28: 151 | G28: 118 | H28: 223 | I28: 212 | J28: 93 | K28: 38 | L28: 73 | M28: 64
A29: crude oil | B29: 15 | C29: 441 | D29: 546 | E29: 629 | F29: 702 | G29: 775 | H29: 719 | I29: 724 | J29: 788 | K29: 832 | L29: 802 | M29: 725
A30: at UGSFs | B30: 36 | C30: 41 | D30: 45 | E30: 8 | F30: 14 | G30: 16 | H30: 17 | I30: 17 | J30: 43 | K30: 22 | L30: 27 | M30: 13
A31: Total | B31: 299 | C31: 638 | D31: 795 | E31: 780 | F31: 867 | G31: 909 | H31: 959 | I31: 953 | J31: 924 | K31: 892 | L31: 902 | M31: 802
A32: Production wells drilled, thousand m
A33: natural gas | B33: 327.4 | C33: 267.1 | D33: 314 | E33: 375.7 | F33: 358.2 | G33: 441.5 | H33: 476.8 | I33: 367.7 | J33: 239.7 | K33: 125.6 | L33: 153.2 | M33: 227.2
A34: crude oil | B34: 38.2 | C34: 1468.9 | D34: 1740.7 | E34: 2080.6 | F34: 2286.7 | G34: 2602.2 | H34: 2288.1 | I34: 2566.6 | J34: 3002.1 | K34: 2948.5 | L34: 3163 | M34: 2735.8
A35: at UGSFs | B35: 31.6 | C35: 30.1 | D35: 37.8 | E35: 17.6 | F35: 11.9 | G35: 20.3 | H35: 22.9 | I35: 24.2 | J35: 36.7 | K35: 27.6 | L35: 47.5 | M35: 23.7
A36: Total | B36: 397.2 | C36: 1766.1 | D36: 2092.5 | E36: 2473.9 | F36: 2656.8 | G36: 3064 | H36: 2787.8 | I36: 2958.5 | J36: 3278.5 | K36: 3101.7 | L36: 3363.7 | M36: 2986.7
A38: Production drilling of companies, investments in which are classified as joint operations
B39: For the year ended 31 December
B40: 2005 | C40: 2006 | D40: 2007 | E40: 2008 | F40: 2009 | G40: 2010 | H40: 2011 | I40: 2012 | J40: 2013 | K40: 2014 | L40: 2015 | M40: 2016
A41: Oil production wells, completed construction, units | B41: x | C41: x | D41: x | E41: x | F41: x | G41: x | H41: x | I41: 243 | J41: 211 | K41: 188 | L41: 206 | M41: 231
A42: Oil production wells drilled, thousand m | B42: x | C42: x | D42: x | E42: x | F42: x | G42: x | H42: x | I42: 827 | J42: 697 | K42: 694 | L42: 789 | M42: 785
A44: Gazprom Group’s production capacity
A45: (excluding companies, investments in which are classified as joint operations)
B46: As at 31 December
B47: 2005 | C47: 2006 | D47: 2007 | E47: 2008 | F47: 2009 | G47: 2010 | H47: 2011 | I47: 2012 | J47: 2013 | K47: 2014 | L47: 2015 | M47: 2016
A48: Fields in operation*, units
A49: Commercial production | I49: 118 | J49: 122 | K49: 126 | L49: 135 | M49: 136
A50: Pilot production | I50: 6 | J50: 11 | K50: 13 | L50: 11 | M50: 15
A51: Total | B51: 114 | C51: 119 | D51: 122 | E51: 122 | F51: 121 | G51: 120 | H51: 124 | I51: 124 | J51: 133 | K51: 139 | L51: 146 | M51: 151
A52: Gas production wells, units | B52: 6941 | C52: 7010 | D52: 7154 | E52: 7214 | F52: 7310 | G52: 7403 | H52: 7504 | I52: 7717 | J52: 7744 | K52: 7816 | L52: 7881 | M52: 7916
A53: including those in operation | B53: 6401 | C53: 6513 | D53: 6640 | E53: 6723 | F53: 6775 | G53: 6806 | H53: 6988 | I53: 7226 | J53: 7263 | K53: 7293 | L53: 7358 | M53: 7441
A54: Oil production wells, units | B54: 5018 | C54: 5486 | D54: 5881 | E54: 5932 | F54: 6158 | G54: 6464 | H54: 6647 | I54: 7296 | J54: 7868 | K54: 8218 | L54: 9058 | M54: 9316
A55: including those in operation | B55: 4372 | C55: 4948 | D55: 5342 | E55: 5444 | F55: 5663 | G55: 5941 | H55: 6151 | I55: 6738 | J55: 7246 | K55: 7604 | L55: 8461 | M55: 8681
A56: Comprehensive and preliminary gas treatment units, units | B56: 169 | C56: 170 | D56: 172 | E56: 173 | F56: 174 | G56: 176 | H56: 177 | I56: 179 | J56: 170 | K56: 171 | L56: 170 | M56: 171
A57: Comprehensive gas treatment units aggregate installed capacity, bcm per year | B57: 939.6 | C57: 957.8 | D57: 976 | E57: 991 | F57: 994.5 | G57: 1001.2 | H57: 1003.2 | I57: 1072.9 | J57: 1099.7 | K57: 1119.7 | L57: 1119.7 | M57: 1119.7
A58: Booster compressor stations, units | B58: 44 | C58: 44 | D58: 45 | E58: 45 | F58: 47 | G58: 48 | H58: 49 | I58: 49 | J58: 49 | K58: 52 | L58: 53 | M58: 58
A59: Booster compressor station’s installed capacity, MW | B59: 4176.1 | C59: 4176.1 | D59: 4300.1 | E59: 4460.1 | F59: 4508.1 | G59: 4572.1 | H59: 4730.1 | I59: 5015.2 | J59: 5046.4 | K59: 5265.4 | L59: 5080.3 | M59: 5669.8
A60: * Since 2016, information on Gazprom Group's fields under development is presented including fields in pilot production, as well as fields at the stage of commercial development, which as of 31 December of the reporting period did not produce hydrocarbons. Data for 2012–2015 recalculated in order to ensure comparability.
A62: Production capacity of companies, investments in which are classified as joint operations
B63: As at 31 December
B64: 2005 | C64: 2006 | D64: 2007 | E64: 2008 | F64: 2009 | G64: 2010 | H64: 2011 | I64: 2012 | J64: 2013 | K64: 2014 | L64: 2015 | M64: 2016
A65: Fields in operation, units | B65: x | C65: x | D65: x | E65: x | F65: x | G65: x | H65: x | I65: 34 | J65: 35 | K65: 39 | L65: 41 | M65: 42
A66: Gas production wells, units | B66: x | C66: x | D66: x | E66: x | F66: x | G66: x | H66: x | I66: 9 | J66: 9 | K66: 8 | L66: 7 | M66: 7
A67: including those in operation | B67: x | C67: x | D67: x | E67: x | F67: x | G67: x | H67: x | I67: 2 | J67: – | K67: 1 | L67: 3 | M67: 3
A68: Oil production wells, units | B68: x | C68: x | D68: x | E68: x | F68: x | G68: x | H68: x | I68: 3439 | J68: 3590 | K68: 3635 | L68: 3768 | M68: 3733
A69: including those in operation | B69: x | C69: x | D69: x | E69: x | F69: x | G69: x | H69: x | I69: 2927 | J69: 3017 | K69: 3086 | L69: 3163 | M69: 3379
A71: Back to Contents

Sheet Promising fields
A1: Promising fields
A2: Producing fields operated by Gazprom Group
A3: Field | B3: Description | C3: Annual design capacity | D3: Year of launch | E3: Year of achieving design capacity
A4: Nadym-Pur-Taz area (Western Siberia)
A5: Pestsovoye (Early Cretaceous deposits) | B5: Located in the Nadym District of the Yamal- Nenets Autonomous Area, 150 km to the northwest of Novy Urengoy | C5: 2.1 bcm of gas | D5: 2020–2021 | E5: 2025–2026
A6: Nydinsky block of the Medvezhye field | B6: Located within the Medvezhye field in the Pur District of the Yamal-Nenets Autonomous Area, Tyumen Region | C6: 2.7 bcm of gas | D6: 2011 | E6: 2020–2021
A7: Urengoyskoye (Achimov deposits) | B7: Deposits have been divided into blocks to facilitate phased development
A8: Block 1 | C8: 9.6 bcm of gas and 2.95 mm tonnes of unstable gas condensate | D8: 2008 | E8: 2021–2023
A9: Block 2 | C9: 8.7 bcm of gas and 2.84 mm tonnes of unstable gas condensate | D9: 2009
A10: Blocks 4–5 | C10: 15.5 bcm of gas | D10: 2020–2021 | E10: 2024–2027
A11: Yamal Peninsula and adjacent offshore areas
A12: Bovanenkovskoye field | B12: The largest field on the Yamal Peninsula in terms of reserves; the field is located in the central part of the peninsula and is the best explored
A13: Cenomanian-Aptian deposits | C13: 115 bcm of gas | D13: 2012 | E13: 2021–2024
A14: Neocomian-Jurassic deposits | C14: 25 bcm of gas | D14: 2024–2025 | E14: 2029–2030
A15: Novoportovskoye | B15: Located in the south-eastern corner of the Yamal Peninsula, where no infrastructure is available | C15: 8.0 mm tonnes of oil | D15: 2016 | E15: 2021
A16: Volga
A17: Astrakhanskoye | B17: Located in the Volga Delta; capable of yielding 50–60 bcm of gas per annum. Production is restricted to 12 bcm per annum for environmental concerns and expensive technology used | D17: 1986
A18: Volga–Urals Area
A19: Vostochny block of the Orenburg oil and gas condensate field | B19: Located 40 km away from Orenburg in a region that benefits from well-developed infrastructure and close vicinity to distribution markets | C19: 6.2 mm toe | D19: 1994 | E19: 2021
A20: Continental shelf in Russia’s Arctic
A21: Prirazlomnoye | B21: Located on the continental shelf of the Russian Federation in the Pechora Sea, 55 km from the settlement of Varandey, 240 km from the river port of Naryan-Mar (Pechora River) and 980 km away from the Murmansk sea port. The sea depth within the field area is only 17–20 metres | C21: 4.8 mm tonnes of oil | D21: 2014 | E21: 2023
A22: Eastern Siberia and the Russian Far East
A23: Chayandinskoye | B23: Located in the Lensk District of the Republic of Sakha (Yakutia) | C23: 25 bcm of gas | D23: The field is scheduled for launch and ramp-up to design capacity in accordance with contractual obligations to supply Russian pipeline gas to China via the Eastern route
C24: 1.9 mm tonnes of oil | D24: 2015 (launch of pilot production) | E24: To be adjusted based on the results of the pilot production phase
A25: Continental shelf of the Russian Federation in the Okhotsk Sea
A26: Kirinskoye | B26: Located on the continental shelf of the Russian Federation in the Okhotsk Sea, to the northeast of Sakhalin Field development is part of Sakhalin III Project | C26: 5.5 bcm of gas | D26: 2014 | E26: 2021–2022
A27: Note. Dates of launch and reaching design capacity may be subject to changes depending on the developments in the energy market.
A29: Fields explored by Gazprom Group
A30: Field | B30: Description | C30: Annual design capacity | D30: Year of launch | E30: Year of achieving design capacity
A31: Yamal Peninsula and adjacent offshore areas
A32: Kharasaveyskoye
A33: Cenomanian-Aptian deposits | B33: To be put in operation after the Bovanenkovskoye field achieves design capacity | C33: 32 bcm of gas | D33: 2023–2024 | E33: 2026–2027
A34: Neocomian-Jurassic deposits | C34: 18 bcm of gas | D34: 2026–2027 | E34: 2028–2029
A35: Kruzenshternskoye | B35: Part of the Bovanenkovskoye group of fields | C35: 33 bcm of gas | D35: 2027–2028 | E35: 2031–2033
A36: Continental shelf in Russia’s Arctic
A37: Shtokmanovskoye | B37: Located in the central area of the Barents Sea to the northwest of Yamal and 650 km to the northeast of Murmansk; Gas is planned to be shipped via the Unified Gas Supply System or as LNG to remote markets | C37: 71.7 bcm expandable to 95 bcm of gas | D37: To be specified based on the Investment Case
A38: Ob and Taz Bays
A39: Severo-Kamennomysskoye | B39: Located in the offshore area of the Ob Bay in the Yamal-Nenets Autonomous Area (Tyumen Region) and is a priority development area in offshore areas of the Ob and Taz Bays | C39: 14.5 bcm of gas | D39: 2025–2027 | E39: 2030–2032
A40: Kamennomysskoye-more | C40: 15.1 bcm of gas | D40: 2023–2025 | E40: 2025–2027
A41: Eastern Siberia and the Russian Far East
A42: Kovyktinskoye | B42: Located in the Zhigalovo and Kazachinskoye Districts of the Irkutsk Region | C42: 25 bcm of gas | D42: The field will be put in operation after the Chayandinskoye oil and gas condensate field achieves its maximum capacity.
A43: Continental shelf of the Russian Federation in the Okhotsk Sea
A44: Yuzhno-Kirinskoye | B44: Located on the continental shelf of the Russian Federation in the Okhotsk Sea, to the northeast of Sakhalin Field development is part of Sakhalin III Project | C44: 21 bcm of gas | D44: 2023 | E44: 2033–2034
A45: Note. Dates of launch and reaching design capacity may be subject to changes depending on the developments in the energy market.
A47: Fields of joint ventures of Gazprom Group
A48: Field | B48: Description and partner | C48: Annual design capacity | D48: Year of launch | E48: Year of achieving design capacity
A49: Gydan Peninsula
A50: Vostochno- Messoyakhsky licence block | B50: Located in the northern part of the Western Siberian oil and gas province in the south-west of the Gydan Peninsula; one of the largest fields by explored reserves Partner: PAO Rosneft | C50: 5.6 mm tonnes of oil | D50: 2016 | E50: 2020
A51: Eastern Siberia and the Russian Far East
A52: Kuyumbinskoye | B52: Located in the Baikitsky Municipality of the Evenk Municipal District in the Krasnoyarsk Territory. Makes part of the Yurubcheno-Tokhomskaya oil and gas pool. The area is hard to access and has no all-season roads Partner: PAO Rosneft | C52: 10.9 mm tonnes of oil | D52: 2018 | E52: 2032
A53: Note. Dates of launch and reaching design capacity may be subject to changes depending on the developments in the energy market.
A55: Back to Contents

Sheet Explor. and production abroad
A1: Exploration and production abroad
A2: Key figures of Gazprom’s hydrocarbon geological exploration abroad
B3: For the year ended 31 December
B4: 2007 | C4: 2008 | D4: 2009 | E4: 2010 | F4: 2011 | G4: 2012 | H4: 2013 | I4: 2014 | J4: 2015 | K4: 2016
A5: Exploration drilling, thousand m | B5: 14.2 | C5: 32.1 | D5: 30.7 | E5: 21.8 | F5: 21.8 | G5: 24 | H5: 18.1 | I5: 17.6 | J5: 28.3 | K5: 9.7
A6: Completed exploration wells, units | B6: – | C6: 4 | D6: 10 | E6: 10 | F6: 6 | G6: 7 | H6: 4 | I6: 5 | J6: 4 | K6: 8
A7: including productive wells | B7: – | C7: – | D7: 2 | E7: 4 | F7: 6 | G7: 1 | H7: 1 | I7: 4 | J7: 2 | K7: 7
A8: Seismic exploration 2D, thousand linear km | B8: 2.4 | C8: 6.3 | D8: 12.5 | E8: 11.4 | F8: 1.3 | G8: 0.7 | H8: 0.4 | I8: – | J8: – | K8: 1.5
A9: Seismic exploration 3D, thousand square km | B9: 1.3 | C9: 7.4 | D9: 3.6 | E9: 2.6 | F9: 0.7 | G9: 0.4 | H9: 1.4 | I9: 1.7 | J9: 1.4 | K9: 0.8
A10: Note. Consolidated figures of geological exploration in foreign countries include results of the projects where companies of Gazprom Group have control and participate as operators.
A12: Gazprom Group’s hydrocarbon production capacity abroad
B13: As at 31 December
F14: 2011 | G14: 2012 | H14: 2013 | I14: 2014 | J14: 2015 | K14: 2016
A15: Fields in operation, units | F15: 50 | G15: 50 | H15: 51 | I15: 47 | J15: 53 | K15: 47
A16: Gas production wells, units | F16: 225 | G16: 234 | H16: 289 | I16: 235 | J16: 168 | K16: 172
A17: including those in operation | F17: 104 | G17: 111 | H17: 94 | I17: 96 | J17: 74 | K17: 81
A18: Oil production wells, units | F18: 900 | G18: 903 | H18: 863 | I18: 904 | J18: 963 | K18: 931
A19: including those in operation | F19: 603 | G19: 623 | H19: 543 | I19: 623 | J19: 661 | K19: 681
A20: Note. The data shows Group’s hydrocarbon production capacity in foreign countries for the respective periods provided by NIS (Serbia).
A22: Gazprom Group oil and gas exploration drilling abroad
B23: For the year ended 31 December
B24: 2007 | C24: 2008 | D24: 2009 | E24: 2010 | F24: 2011 | G24: 2012 | H24: 2013 | I24: 2014 | J24: 2015 | K24: 2016
A25: Production wells, completed construction, units
A26: natural gas | G26: 2 | H26: 1 | I26: 3 | J26: – | K26: 2
A27: crude oil | G27: 12 | H27: 27 | I27: 46 | J27: 35 | K27: 38
A28: Total | G28: 14 | H28: 28 | I28: 49 | J28: 35 | K28: 40
A29: Production wells drilled, thousand m
A30: natural gas | G30: 3 | H30: 1.9 | I30: 7.9 | J30: – | K30: 1.6
A31: crude oil | G31: 18.4 | H31: 63.6 | I31: 86 | J31: 75 | K31: 40.9
A32: Total | G32: 21.4 | H32: 65.5 | I32: 93.9 | J32: 75 | K32: 42.5
A33: Note. The data shows Group’s hydrocarbon production capacity in foreign countries for the respective periods provided by NIS (Serbia).
A35: Hydrocarbon production abroad, projects with participation of Gazprom Group
A36: Project | B36: For the year ended 31 December
B37: 2007 | C37: 2008 | D37: 2009 | E37: 2010 | F37: 2011 | G37: 2012 | H37: 2013 | I37: 2014 | J37: 2015 | K37: 2016
A38: Natural and associated gas, mmcm
A39: Badra | G39: – | H39: – | I39: – | J39: 7 | K39: 14
A40: Wingate | G40: 742 | H40: 394 | I40: 622 | J40: 877 | K40: 686
A41: Moc Tinh and Hai Thach | G41: – | H41: 331 | I41: 1786 | J41: 1884 | K41: 2142
A42: Shakhpakthy | G42: 301 | H42: 319 | I42: 334 | J42: 357 | K42: 363
A43: Incahuasi | G43: – | H43: – | I43: – | J43: – | K43: 740
A44: Gas condensate, thouand tonnes
A45: Wingate | G45: 5 | H45: 2 | I45: 4 | J45: 5 | K45: 3
A46: Moc Tinh and Hai Thach | G46: – | H46: 59 | I46: 366 | J46: 436 | K46: 573
A47: Incahuasi | G47: – | H47: – | I47: – | J47: – | K47: 75
A48: Crude oil, thousand tonnes
A49: Badra | G49: – | H49: – | I49: 309 | J49: 1383 | K49: 2575
A50: Junin-6 block | G50: – | H50: 106 | I50: 262 | J50: 524 | K50: 823
A51: Garmian block | G51: – | H51: – | I51: – | J51: 219 | K51: 193
A52: Note. Production volumes are given in total for the project, not specifying Gazprom Group’s share.
A54: Back to Contents

Sheet Exploration projects abroad
A1: International prospecting and exploration projects of Gazprom Group
A2: Country | B2: Project name, purpose, and description | C2: Project start | D2: The Group’s operator role | E2: Terms of the Group’s participation
A3: Algeria | B3: Hydrocarbon exploration and development at the El-Assel licence block located in the Berkine geological basin in the east of Algeria in the Sahara Desert. | C3: 2009 | D3: + | E3: Gazprom EP International B.V.
A4: Bolivia | B4: Hydrocarbon exploration and development at the Ipati and Aquio licence blocks. The Incahuasi field was discovered during the exploration stage at the Ipati and Aquio licence blocks in 2011. Project highlights: — Launched in 2016. — Design capacity of Phase 1 CGTU — 2.4 bcm of natural gas per year. | C4: 2010 | D4: – | E4: GP Exploración y Producción, S.L.
B5: Hydrocarbon exploration and development at the Azero licence block. | C5: 2013 | D5: – | E5: GP Exploración y Producción, S.L.
A6: UK and the Netherlands | B6: Construction, production, and follow-up exploration at the UK’s offshore Wingate gas field (licence blocks P1239, P1733). The field has been producing since 2011. Design capacity: 0.5 bcm of natural gas per year. | C6: 2008 | D6: – | E6: Gazprom UK Resources, S.A.
B7: Exploration at UK’s offshore licence blocks: UK’s Р1902 (block 44/23c) and Р1903 (blocks 44/23d and 44/24с). | C7: 2012 | D7: – | E7: Gazprom International UK Ltd.
B8: Exploration at Licence Block D12b on the Dutch continental shelf | C8: 2011 | D8: – | E8: Gazprom International UK Ltd.
B9: Exploration at Licence Block 44/19a on the UK’s continental shelf | C9: 2014 | D9: – | E9: Gazprom International UK Ltd.
A10: Venezuela | B10: Development of Junin-6 heavy oil field in the Orinoco River basin | C10: 2009 | D10: – | E10: PAO Gazprom Neft
A11: Vietnam | B11: Hydrocarbon prospecting and exploration on the Vietnamese continental shelf
B12: Block 112 (including extension) | C12: 2000 | D12: + | E12: AO Gazprom Zarubezhneftegaz
B13: Blocks 129–132 | C13: 2008 | D13: + | E13: AO Gazprom Zarubezhneftegaz
B14: Hydrocarbon production at blocks 05–2 and 05–3 in the Vietnamese waters of the South China Sea. Sales of hydrocarbons. Two gas and condensate fields (Moc Tinh and Hai Thach) and an oil field (Kim Cuong Tay) have been discovered within the boundaries of the blocks. Highlights of the joint development project at the Moc Tinh and Hai Thach fields: — Launched in 2013; — Design capacity: 2.0 bcm of natural gas per year; — Design capacity reached in 2016. | C14: 2012 | D14: – | E14: Gazprom EP International B.V.
A15: Iraq | B15: Development of the Badrah field Project stage: commercial operation Project highlights: — Launched in 2014; — Design capacity: 5.7 mm tonnes of oil per year; — Design capacity to be reached in 2017. The project is expected to span 20 years, with potential extension for another five years. | C15: 2010 | D15: + | E15: Gazprom Neft Badra B.V.
B16: Zagros Project (Kurdistan) Project stage: exploration. | C16: 2012
B17: Shakal block: — Commercial production to be launched in 2018. | D17: + | E17: Gazprom Neft Middle East B.V.
B18: Garmian block | D18: + | E18: Gazprom Neft Middle East B.V.
B19: Halabja Project (Kurdistan) — Commercial production to be launched in 2019. | C19: 2013 | D19: + | E19: Gazprom Neft Middle East B.V.
A20: Kazakhstan and Russia | B20: Development of the Tsentralnoye cross-border offshore field in the Caspian Sea (a joint project between the Russian Federation and the Republic of Kazakhstan). The field was discovered in 2008 as part of a prospecting and exploration project at the Tsentralnaya geological structure, which involved the Group. | C20: 2013 | D20: - | E20: PJSC Gazprom
A21: Kyrgyzstan | B21: Exploration at Vostochniy Mailisu-IV and Kugart oil and gas prospects. | C21: 2006 | D21: + | E21: AO Gazprom Zarubezhneftegaz
A22: Libya | B22: Hydrocarbon exploration and development at licence Blocks 19 (offshore Mediterranean) and 64 (onshore, in the northern part of the Gadames oil and gas bearing basin). | C22: 2007 | D22: + | E22: Gazprom Libya B.V.
A23: Tajikistan | B23: Exploration at Sarikamysh, Sargazon, Rengan, and Western Shohambary oil and gas prospects. The licences for Sargazon and Rengan were returned in 2012 due to high geological, technical, and economic risks related to their development. | C23: 2006 | D23: + | E23: AO Gazprom Zarubezhneftegaz
A24: Uzbekistan | B24: Prospecting, exploration, and production of hydrocarbons in the Ustyurt region of the Republic of Uzbekistan (seven investment blocks). Licences for six investment blocks have been returned due to the lack of potential. | C24: 2006 | D24: + | E24: AO Gazprom Zarubezhneftegaz
B25: Refurbishment of the infrastructure at the Shakhpakhty field in the Ustyurt region of the Republic of Uzbekistan, and follow-up development of remaining gas reserves are underway. | C25: 2004 | D25: + | E25: AO Gazprom Zarubezhneftegaz
A27: International prospecting and exploration projects of associated companies and joint ventures
A28: Company | B28: Overview and results | C28: Gazprom Group’s interest | E28: Countries of operation
A29: Wintershall AG | B29: The company owns C96 and C97 oil concessions in Libya and acts as the project operator. Nine fields are in operation. In August 2013, Force Majeure was invoked by the company and lasted till September 2016. As at 31 December 2016, production was confined to C96 block at 35–40 thousand barrels per day. In 2016, the company produced 504 thousand tonnes of oil and 137 mmcm of associated gas (flat year-on-year). | C29: 49% equity share acquired by the Group in 2007 as a result of the asset swap agreement with BASF. | E29: Libya
A30: Wintershall Noordzee B.V. | B30: The company owns varied level stakes in 51 licenses in the British, Danish, and Dutch sectors of the North Sea. A number of oil and gas fields are discovered within these license areas. Key producing assets are K18-Golf, Wingate, Q1-B and Q1-D gas fields. In 2016, the company produced 1.0 bcm of gas. The company also carries out construction at the Ravn oil field in the Danish sector of the North Sea. | C30: 50% equity share acquired by the Group in 2015 as a result of the asset swap agreement with BASF. | E30: The Netherlands, United Kingdom, Denmark
A31: Note. As at 31 December 2016.
A33: Back to Contents

Sheet Transportation
A1: Transportation and underground storage
A2: Transportation
A3: Upgrade and overhaul of gas transportation system in Russia
B4: For the year ended 31 December
B5: 2005 | C5: 2006 | D5: 2007 | E5: 2008 | F5: 2009 | G5: 2010 | H5: 2011 | I5: 2012 | J5: 2013 | K5: 2014 | L5: 2015 | M5: 2016
A6: Gas trunk pipelines and pipeline branches putting into operation*, km | B6: 1402 | C6: 1526 | D6: 1157 | E6: 1381 | F6: 865 | G6: =ROUND(1338.6,0) -> 1339 | H6: 2470 | I6: 3213 | J6: 703 | K6: 1277 | L6: 933 | M6: 771
A7: Capital repairs, km | B7: 2166.8 | C7: 2809 | D7: 2697 | E7: 2756.3 | F7: 2383.7 | G7: 2427.3 | H7: 2436.6 | I7: 2487 | J7: 1819 | K7: 1581 | L7: 1441 | M7: 823
A8: Number of technical faults per 1 thousand km | B8: 0.14 | C8: 0.12 | D8: 0.11 | E8: 0.13 | F8: 0.09 | G8: 0.04 | H8: 0.07 | I8: 0.09 | J8: 0.05 | K8: 0.03 | L8: 0.05 | M8: 0.03
A9: * Starting from 2015, the data is formed including objects not provided by the investment program of the corresponding year.
A11: Major technical characteristics of Gazprom Group’s gas transportation assets in Russia
B12: As at 31 December
B13: 2005 | C13: 2006 | D13: 2007 | E13: 2008 | F13: 2009 | G13: 2010 | H13: 2011 | I13: 2012 | J13: 2013 | K13: 2014 | L13: 2015 | M13: 2016
A14: Length of gas trunk pipelines and pipeline branches (in single-lane measuring), thousand km | B14: 155 | C14: 156.9 | D14: 158.2 | E14: 159.5 | F14: 160.4 | G14: 161.7 | H14: 164.7 | I14: 168.3 | J14: 168.9 | K14: 170.7 | L14: 171.2 | M14: 171.4
A15: Linear compressor stations, units | B15: 210 | C15: 217 | D15: 218 | E15: 214 | F15: 215 | G15: 215 | H15: 211 | I15: 222 | J15: 247 | K15: 250 | L15: 250 | M15: 253
A16: Gas pumping units (GPUs), units | B16: 3587 | C16: 3629 | D16: 3641 | E16: 3669 | F16: 3675 | G16: 3659 | H16: 3630 | I16: 3738 | J16: 3820 | K16: 3825 | L16: 3829 | M16: 3852
A17: GPUs installed capacity, thousand MW | B17: 40.2 | C17: 41 | D17: 41.4 | E17: 41.6 | F17: 42 | G17: 42.1 | H17: 41.7 | I17: 43.9 | J17: 45.9 | K17: 46.1 | L17: 46.2 | M17: 46.7
A19: Breakdown of Russian trunk pipelines by time of service, thousand km
B20: As at 31 December
G21: 2010 | H21: 2011 | I21: 2012 | J21: 2013 | K21: 2014 | L21: 2015 | M21: 2016
A22: Up to 10 years | G22: 17.2 | H22: 19.6 | I22: 22.2 | J22: 21.1 | K22: 20.6 | L22: 19.9 | M22: 19.9
A23: from 11 to 20 years | G23: 25 | H23: 21.8 | I23: 20.4 | J23: 20 | K23: 20.7 | L23: 19.1 | M23: 19.1
A24: from 21 to 30 years | G24: 70.9 | H24: 64.6 | I24: 61.7 | J24: 56.5 | K24: 50.6 | L24: 47.3 | M24: 47.2
A25: from 31 to 40 years | G25: 23.8 | H25: 31.8 | I25: 36.8 | J25: 41.7 | K25: 46.6 | L25: 49.2 | M25: 49.1
A26: from 41 to 50 years | G26: 19.3 | H26: 19.6 | I26: 18.8 | J26: 19.7 | K26: 20.6 | L26: 23.3 | M26: 23
A27: Over 50 years | G27: 5.5 | H27: 7.3 | I27: 8.4 | J27: 9.9 | K27: 11.6 | L27: 12.4 | M27: 13.1
A28: Total | G28: 161.7 | H28: 164.7 | I28: 168.3 | J28: 168.9 | K28: 170.7 | L28: 171.2 | M28: 171.4
A30: Gas received into and distributed from Gazprom’s GTS in Russia, bcm
B31: For the year ended 31 December
B32: 2005 | C32: 2006 | D32: 2007 | E32: 2008 | F32: 2009 | G32: 2010 | H32: 2011 | I32: 2012 | J32: 2013 | K32: 2014 | L32: 2015 | M32: 2016
A33: Injections into GTS
A34: Gas inflow to GTS, including: | B34: 646.9 | C34: 660.9 | D34: 654.8 | E34: 669.2 | F34: 552.4 | G34: 614.1 | H34: 630.9 | I34: 613.7 | J34: 621 | K34: 588.7 | L34: 574.2 | M34: 573.8
A35: Central Asian gas | B35: 54.6 | C35: 57 | D35: 59.9 | E35: 61.4 | F35: 35.7 | G35: 35.3 | H35: 31.8 | I35: 31.7 | J35: 29.3 | K35: 26.4 | L35: 20 | M35: 18
A36: Azerbaijanian gas | B36: – | C36: – | D36: – | E36: – | F36: – | G36: 0.8 | H36: 1.5 | I36: 1.6 | J36: 1.4 | K36: 0.2 | L36: – | M36: –
A37: Gas withdrawn from UGSFs in Russia and Latvia | B37: 42.8 | C37: 48.2 | D37: 41.7 | E37: 36.1 | F37: 30 | G37: 40.8 | H37: 47.1 | I37: 44.3 | J37: 32.7 | K37: 32.7 | L37: 24.3 | M37: 44.9
A38: Decrease of amount of gas stored in GTS | B38: 10 | C38: 8.7 | D38: 10.2 | E38: 9 | F38: 7.3 | G38: 6.3 | H38: 5.2 | I38: 8.2 | J38: 5.7 | K38: 6.1 | L38: 4.1 | M38: 3.9
A39: Total | B39: 699.7 | C39: 717.8 | D39: 706.7 | E39: 714.3 | F39: 589.7 | G39: 661.2 | H39: 683.2 | I39: 666.2 | J39: 659.4 | K39: 627.5 | L39: 602.6 | M39: 622.6
A40: Distribution from GTS
A41: Supplies inside Russia, including: | B41: 339.8 | C41: 352 | D41: 356.4 | E41: 352.8 | F41: 335.6 | G41: 354.9 | H41: 365.6 | I41: 362.3 | J41: 354.6 | K41: 356.5 | L41: 342.3 | M41: 351.7
A42: Central Asian gas | B42: 0.1 | C42: 0.1 | D42: 0.1 | E42: 0.1 | F42: 0.1 | G42: 0.1 | H42: 0.1 | I42: 0 | J42: 0 | K42: 0 | L42: 0 | M42: 0
A43: Supplies outside Russia, including: | B43: 251.2 | C43: 254.7 | D43: 247.3 | E43: 251.1 | F43: 195.6 | G43: 209.3 | H43: 217.7 | I43: 209.3 | J43: 220.2 | K43: 196.2 | L43: 196.8 | M43: 209.4
A44: Central Asian gas | B44: 54.5 | C44: 56.8 | D44: 59.7 | E44: 61.3 | F44: 35.6 | G44: 35.2 | H44: 31.8 | I44: 31.6 | J44: 29.3 | K44: 26.4 | L44: 20 | M44: 18
A45: Azerbaijanian gas | B45: – | C45: – | D45: – | E45: – | F45: – | G45: 0.8 | H45: 1.5 | I45: 1.6 | J45: 1.4 | K45: 0.2 | L45: – | M45: –
A46: Gas pumped into UGSFs in Russia | B46: 46.3 | C46: 50.3 | D46: 43 | E46: 51.6 | F46: 15.7 | G46: 47.7 | H46: 48.2 | I46: 44.1 | J46: 38.4 | K46: 35.1 | L46: 27.1 | M46: 24.7
A47: Technical needs of GTS and UGSFs | B47: 51.7 | C47: 52 | D47: 49.5 | E47: 49.6 | F47: 36.3 | G47: 43.6 | H47: 45.8 | I47: 40.9 | J47: 40.6 | K47: 33.2 | L47: 32.3 | M47: 32.3
A48: Increase of amount of gas stored in GTS | B48: 10.7 | C48: 8.8 | D48: 10.5 | E48: 9.2 | F48: 6.5 | G48: 5.7 | H48: 5.9 | I48: 9.6 | J48: 5.6 | K48: 6.5 | L48: 4.1 | M48: 4.5
A49: Total | B49: 699.7 | C49: 717.8 | D49: 706.7 | E49: 714.3 | F49: 589.7 | G49: 661.2 | H49: 683.2 | I49: 666.2 | J49: 659.4 | K49: 627.5 | L49: 602.6 | M49: 622.6
A51: Gas transportation volumes of Nord Stream and Blue Stream pipelines, bcm
B52: For the year ended 31 December
H53: 2011 | I53: 2012 | J53: 2013 | K53: 2014 | L53: 2015 | M53: 2016
A54: Nord Stream pipeline (through Portovaya CS) | H54: 0.9 | I54: 11.8 | J54: 23.8 | K54: 35.6 | L54: 39.1 | M54: 43.8
A55: Blue Stream pipeline (through Beregovaya CS) | H55: 14 | I55: 14.7 | J55: 13.7 | K55: 14.4 | L55: 15.7 | M55: 13.1
A57: Major technical characteristics of gas transportation assets of Gazprom Group’s subsidiaries abroad
B58: As at and for the year ended 31 December
H59: 2011 | I59: 2012 | J59: 2013 | K59: 2014 | L59: 2015 | M59: 2016
A60: Belarus (OAO Gazprom transgaz Belarus and a part of Yamal — Europe gas pipeline on the territory of Belarus)
A61: Length, thousand km | H61: 7.9 | I61: 7.9 | J61: 7.9 | K61: 7.9 | L61: 7.9 | M61: 7.9
A62: Compressor stations, units | H62: 10 | I62: 10 | J62: 10 | K62: 10 | L62: 10 | M62: 10
A63: Gas inflow to gas transportation system, bcm | H63: 64.3 | I63: 64.5 | J63: 69.1 | K63: 65.2 | L63: 64.2 | M63: 60.3
A64: including transit | H64: 44.3 | I64: 44.3 | J64: 48.8 | K64: 45.1 | L64: 45.4 | M64: 41.7
A65: Armenia (ZAO Gazprom Armenia)
A66: Length, thousand km | H66: 1.9 | I66: 1.9 | J66: 1.8 | K66: 1.7 | L66: 1.6 | M66: 1.6
A67: Compressor stations, units | H67: – | I67: – | J67: – | K67: – | L67: – | M67: –
A68: Gas inflow to gas transportation system, bcm | H68: 2.1 | I68: 2.5 | J68: 2.4 | K68: 2.5 | L68: 2.3 | M68: 2.2
A69: including transit | H69: – | I69: – | J69: – | K69: – | L69: – | M69: –
A70: Kyrgyzstan (OsOO Gazprom Kyrgyzstan)*
A71: Length, thousand km | H71: x | I71: x | J71: x | K71: 0.7 | L71: 0.7 | M71: 0.7
A72: Compressor stations, units | H72: x | I72: x | J72: x | K72: 1 | L72: 1 | M72: 1
A73: Gas inflow to gas transportation system, bcm | H73: x | I73: x | J73: x | K73: 4.3 | L73: 4.6 | M73: 4.5
A74: including transit | H74: x | I74: x | J74: x | K74: 4 | L74: 4.4 | M74: 4.2
A75: * Figures provided since the year when control was taken over by the Group.
A77: Back to Contents

Sheet Gas transportation projects
A1: Gazprom Group’s major gas transportation projects
A2: Project | B2: Purpose | C2: Project highlights
C3: Length | D3: Number / total capacity of compressor stations | E3: Annual capacity | F3: Project period
A4: Gryazovets — Vyborg pipeline loopings to the second line on Gryasovets — Volkhov section (expansion) | B4: Increase gas supplies to consumers in Saint Petersburg and the Leningrad Region | C4: 213 km | D4: – | E4: 7.0 bcm | F4: 2018– 2019
A5: Nord Stream 2 | B5: Gas supplies to consumers in Western and Central Europe | C5: C. 1,200 km (to be adjusted based on the results of a detailed project) | D5: – | E5: 55 bcm | F5: Q4 2019
A6: Turkish Stream | B6: Supplies of Russian gas to Turkey across the Black Sea and further on to Turkey’s borders with neighbouring countries | C6: 942 km (offshore section), 195 km (onshore section) | D6: The company will consider benefits of building compressor stations in Turkey based on the design documents to be developed by the Turkish partners for the onshore section of the pipeline. | E6: 31.5 bcm | F6: December 2019
A7: UGSS expansion to ensure gas supply to the Turkish Stream pipeline (Western route)* | B7: Gas transportation in Russia to ensure gas supply to the Turkish Stream pipeline and consumers in Russia; until December 2014, the project was intended to supply gas to the South Stream pipeline | C7: 865 km | D7: 4 compressor stations / 574 MW | E7: 33.5 bcm | F7: 2014–2016
A8: Murmansk — Volkhov gas pipeline | B8: Gas transportation from the Shtokman field to the Russian UGSS | C8: 1,365 km | D8: Up to 10 compressor stations / 1,225 MW | E8: Up to 46 bcm (depending on gas production levels at the Shtokman field) | F8: Construction and commissioning will be scheduled after the investment decision is made on the Shtokman field.
A9: Bovanenkovo — Ukhta gas pipeline (Line 2) | B9: Gas pipeline system to carry gas from Yamal fields | C9: 1,264 km | D9: 9 compressor stations / 830 MW | E9: 57.5 bcm | F9: 2014–2020
A10: Ukhta – Torzhok gas pipeline (Line 2) (Yamal) | B10: Additional gas supplies to Russia’s North-West to expand the domestic gas infrastructure and ensure export supplies via Nord Stream 2 | C10: 970 km | D10: 7 compressor stations / 625 MW | E10: 45 bcm | F10: 2014–2019
A11: Power of Siberia | B11: Gas supplies from the Chayandinskoye oil and gas condensate field and the Kovyktinskoye gas condensate field to the gas infrastructure of the Far Eastern Federal District, and gas exports to China market | C11: 2,962 km, including 2,159 km of the Chayandinskoye — China border | D11: 9 compressor stations (1,234 MW), including 8 compressor stations (1,186 MW) between Chayandinskoye and China border | E11: Up to 48 bcm | F11: In accordance with contractual obligations to supply Russian pipeline gas to China through the Eastern route
A12: Power of Siberia 2 | B12: Gas supplies from Western Siberia to China; diversification of gas exports | C12: 2,622 km | D12: 12 КС (to be updated) | E12: 30 bcm | F12: The feasibility study has been completed. PJSC Gazprom and CNPC continue negotiating the commercial and technical framework of gas supplies.
A13: Expansion of UGSS transportation capacity in Northwest Russia, Gryazovets — CS Slavyanskaya section | B13: Additional gas supplies to consumers in Northwest Russia and gas exports | C13: 870 km | D13: 8 compressor stations / 1,500 MW | E13: C. 80 bcm | F13: Staged commissioning starting from December 2019
A14: * The Eastern Corridor project with the planned annual capacity of 65 bcm was suspended.
A16: Back to Contents

Sheet Gas storage
A1: Underground gas storage
A2: Gazprom’s UGSFs in Russia
B3: As at 31 December
B4: 2005 | C4: 2006 | D4: 2007 | E4: 2008 | F4: 2009 | G4: 2010 | H4: 2011 | I4: 2012 | J4: 2013 | K4: 2014 | L4: 2015 | M4: 2016
A5: Number of UGSFs, units | B5: 24 | C5: 25 | D5: 25 | E5: 25 | F5: 25 | G5: 25 | H5: 25 | I5: 25 | J5: 26 | K5: 26 | L5: 26 | M5: 26
A6: Total active capacity, bcm | B6: 64.25 | C6: 64.65 | D6: 64.94 | E6: 65.2 | F6: 65.2 | G6: 65.41 | H6: 66.7 | I6: 68.16 | J6: 70.41 | K6: 71.1 | L6: 73.56 | M6: 73.62
A7: Number of producing wells at UGSFs, units | B7: 2509 | C7: 2588 | D7: 2618 | E7: 2615 | F7: 2601 | G7: 2564 | H7: 2602 | I7: 2621 | J7: 2689 | K7: 2685 | L7: 2686 | M7: 2681
A9: Gas storage in Russia
B10: Injection season, Q1–Q4
B11: 2005 | C11: 2006 | D11: 2007 | E11: 2008 | F11: 2009 | G11: 2010 | H11: 2011 | I11: 2012 | J11: 2013 | K11: 2014 | L11: 2015 | M11: 2016
A12: Gas injection into UGSFs, mmcm
A13: Q1 | B13: – | C13: – | D13: 1074.8 | E13: 107.1 | F13: 161.4 | G13: =ROUND(866.627,1) -> 866.6 | H13: – | I13: 357.6 | J13: 55.7 | K13: 189.4 | L13: – | M13: –
A14: Q2 | B14: 19513.3 | C14: 21189.2 | D14: 21295.6 | E14: 24370.5 | F14: 3075 | G14: =ROUND(24097.694,1) -> 24097.7 | H14: 21291.8 | I14: 23793.6 | J14: 21407.9 | K14: 14963.8 | L14: 10158.4 | M14: 8468.8
A15: Q3 | B15: 22416.6 | C15: 25659.5 | D15: 19766.1 | E15: 24020.4 | F15: 10116.9 | G15: =ROUND(20680.963,1) -> 20681 | H15: 24248.5 | I15: 18006.8 | J15: 13784.8 | K15: 16790.1 | L15: 14498.1 | M15: 14209.2
A16: Q4 | B16: 4385.1 | C16: 3500.8 | D16: 859.5 | E16: 3150.4 | F16: 2319.1 | G16: =ROUND(2085.394,1) -> 2085.4 | H16: 2657.2 | I16: 1938.7 | J16: 3120.1 | K16: 3191.2 | L16: 2425.3 | M16: 1973.1
A17: Total for the season | B17: 46315 | C17: =SUM(C13:C16) -> 50349.5 | D17: =SUM(D13:D16) -> 42996 | E17: =SUM(E13:E16) -> 51648.4 | F17: =SUM(F13:F16) -> 15672.4 | G17: =SUM(G13:G16) -> 47730.7 | H17: 48197.5 | I17: 44096.7 | J17: 38368.5 | K17: 35134.5 | L17: 27081.8 | M17: 24651.1
B18: Withdrawal season, Q3–Q4 and Q1–Q2 of the next year
B19: 2005-2006 | C19: 2006−2007 | D19: 2007−2008 | E19: 2008−2009 | F19: 2009−2010 | G19: 2010−2011 | H19: 2011−2012 | I19: 2012−2013 | J19: 2013−2014 | K19: 2014−2015 | L19: 2015−2016 | M19: 2016-2017
A20: Gas withdrawal from UGSFs, mmcm
A21: Q3 | B21: 185.7 | C21: 4.1 | D21: 89.7 | E21: 107.1 | F21: 155.8 | G21: 135.1 | H21: 300 | I21: 143.9 | J21: 63.2 | K21: 41.9 | L21: 92.8 | M21: 114.2
A22: Q4 | B22: 12873.2 | C22: 12743.4 | D22: 21688.7 | E22: 7634.2 | F22: 18980.5 | G22: 14428.8 | H22: 13664.6 | I22: 14418.3 | J22: 9777 | K22: 8262.5 | L22: 5172.1 | M22: 18834.6
A23: Q1 of the next year | B23: 34936 | C23: 19763.6 | D23: 28347.1 | E23: 8653.9 | F23: 26176.9 | G23: 31740.7 | H23: 29258.1 | I23: 21815.7 | J23: 21662.3 | K23: 16353.2 | L23: 24653.1 | M23: 26175.1
A24: Q2 of the next year | B24: 518.1 | C24: 116.5 | D24: 18.5 | E24: 2234 | F24: 48.5 | G24: 1366.2 | H24: 481.9 | I24: 1091.9 | J24: 2714.6 | K24: 2653.2 | L24: 1234.2 | M24: 2014.5
A25: Total for the season | B25: 48513 | C25: =SUM(C21:C24) -> 32627.6 | D25: =SUM(D21:D24) -> 50144 | E25: =SUM(E21:E24) -> 18629.2 | F25: =SUM(F21:F24) -> 45361.7 | G25: =SUM(G21:G24) -> 47670.8 | H25: 43704.5 | I25: 37469.8 | J25: 34217.1 | K25: 27310.8 | L25: 31152.2 | M25: 47138.4
A26: Maximum potential daily output as at the beginning of gas withdrawal season, mmcm per day | B26: 568 | C26: 600 | D26: 608 | E26: 620 | F26: 620 | G26: 620 | H26: 647.7 | I26: 671.1 | J26: 727.8 | K26: 770.4 | L26: 789.9 | M26: 801.3
A28: Gazprom’s gas injection into and withdrawal from UGSFs abroad, mmcm
B29: Injection season, Q1–Q4
B30: 2005 | C30: 2006 | D30: 2007 | E30: 2008 | F30: 2009 | G30: 2010 | H30: 2011 | I30: 2012 | J30: 2013 | K30: 2014 | L30: 2015 | M30: 2016
A31: Gas injection into UGSFs abroad, mmcm
A32: FSU countries
A33: Armenia | B33: 84 | C33: 101 | D33: 87 | E33: 89 | F33: 70 | G33: 46.1 | H33: 23.1 | I33: 127.4 | J33: 29.2 | K33: 68.9 | L33: 40.6 | M33: –
A34: Belarus | B34: – | C34: – | D34: – | E34: – | F34: – | G34: – | H34: 748 | I34: 940.8 | J34: 928.8 | K34: 962.3 | L34: 916.7 | M34: 857.1
A35: Latvia | B35: 1466.9 | C35: 1588.9 | D35: 135.3 | E35: 1300.1 | F35: 588.1 | G35: =ROUND(1639.45,1) -> 1639.5 | H35: 1567.5 | I35: 1599.5 | J35: 1536.7 | K35: 1907.1 | L35: 1550 | M35: 1250
A36: Total injection (FSU countries) | B36: =SUM(B33:B35) -> 1550.9 | C36: 1689.9 | D36: 222.3 | E36: 1389.1 | F36: 658.1 | G36: 1685.6 | H36: =SUM(H33:H35) -> 2338.6 | I36: 2667.7 | J36: 2494.7 | K36: 2938.3 | L36: 2507.3 | M36: 2107.1
A37: Far abroad countries*
A38: Austria | B38: 440.4 | C38: 449 | D38: 944.8 | E38: 858.6 | F38: 474.1 | G38: =ROUND(580.758,1) -> 580.8 | H38: 1093.7 | I38: 1407.1 | J38: 1472 | K38: 1303.5 | L38: 709.8 | M38: 683.9
A39: Great Britain | B39: 76.8 | C39: 294.4 | D39: 414.5 | E39: 528.9 | F39: 225.8 | G39: =ROUND(233.672,1) -> 233.7 | H39: 225.2 | I39: 224.3 | J39: 226.5 | K39: 224 | L39: 224.4 | M39: –
A40: Hungary | B40: – | C40: – | D40: – | E40: – | F40: – | G40: – | H40: – | I40: – | J40: – | K40: 699.9 | L40: – | M40: –
A41: Germany | B41: 374.9 | C41: 1142.7 | D41: 1111 | E41: 1384.8 | F41: 583.6 | G41: =ROUND(705.293,1) -> 705.3 | H41: 155.2 | I41: 2149.5 | J41: 1464.2 | K41: 886.1 | L41: 797.2 | M41: 654.1
A42: The Netherlands | B42: – | C42: – | D42: – | E42: – | F42: 328 | G42: =ROUND(853.78,1) -> 853.8 | H42: 1582.6 | I42: 1276.7 | J42: 617.3 | K42: 1313.1 | L42: 1176.9 | M42: 1195
A43: Serbia | B43: – | C43: – | D43: – | E43: – | F43: – | G43: – | H43: 279.4 | I43: 336.2 | J43: 93.5 | K43: 118.4 | L43: – | M43: –
A44: France | B44: – | C44: – | D44: – | E44: 273.9 | F44: 250 | G44: =ROUND(298.162,1) -> 298.2 | H44: – | I44: – | J44: – | K44: – | L44: – | M44: –
A45: Czech Republic | B45: – | C45: – | D45: – | E45: – | F45: – | G45: – | H45: – | I45: – | J45: – | K45: – | L45: – | M45: 105.3
A46: Total injection (far abroad countries) | B46: =SUM(B38:B45) -> 892.1 | C46: =SUM(C38:C45) -> 1886.1 | D46: 2470.3 | E46: 3046.2 | F46: 1861.5 | G46: 2671.8 | H46: 3336.1 | I46: 5393.8 | J46: 3873.5 | K46: 4545 | L46: 2908.3 | M46: 2638.3
A47: Total for the season | B47: 2443 | C47: 3576 | D47: 2692.6 | E47: 4435.3 | F47: 2519.6 | G47: 4357.4 | H47: 5674.7 | I47: 8061.5 | J47: 6368.2 | K47: 7483.3 | L47: 5415.6 | M47: 4745.4
A48: * Gas injection of Gazprom Group for contracts of OOO Gazprom Export.
B49: Withdrawal season, Q3–Q4 and Q1–Q2 of the next year
B50: 2005-2006 | C50: 2006−2007 | D50: 2007−2008 | E50: 2008−2009 | F50: 2009−2010 | G50: 2010−2011 | H50: 2011−2012 | I50: 2012−2013 | J50: 2013−2014 | K50: 2014−2015 | L50: 2015−2016 | M50: 2016-2017
A51: Gas withdrawal* from UGSFs abroad, mmcm
A52: FSU countries
A53: Armenia | B53: 73 | C53: 78 | D53: 64 | E53: 80 | F53: 24 | G53: 21.2 | H53: 127.1 | I53: 18.2 | J53: 66.7 | K53: 23 | L53: 10.8 | M53: 30.6
A54: Belarus | B54: – | C54: – | D54: – | E54: – | F54: – | G54: – | H54: 783.5 | I54: 840.9 | J54: 813.1 | K54: 850 | L54: 815.2 | M54: 872
A55: Latvia | B55: 911.1 | C55: 213.1 | D55: 288.3 | E55: 682.8 | F55: =ROUND(1009.162,1) -> 1009.2 | G55: 1658.5 | H55: 1529.8 | I55: 1410.8 | J55: 1318.4 | K55: 1541.7 | L55: 1257.1 | M55: 1081.8
A56: Total withdrawal (FSU countries) | B56: =SUM(B53:B55) -> 984.1 | C56: =SUM(C53:C55) -> 291.1 | D56: 352.3 | E56: 762.8 | F56: 1033.2 | G56: 1679.7 | H56: 2440.4 | I56: 2269.9 | J56: 2198.2 | K56: 2414.7 | L56: 2083.1 | M56: 1984.4
A57: Far abroad countries**
A58: Austria | B58: 200 | C58: 200 | D58: 652.8 | E58: 381.9 | F58: =ROUNDDOWN(480.151,1) -> 480.1 | G58: 543.7 | H58: 982.6 | I58: 1534.1 | J58: 1171.6 | K58: 835.8 | L58: 820 | M58: 1408.3
A59: Great Britain | B59: – | C59: 371.2 | D59: 422.4 | E59: 227.5 | F59: =ROUND(317.951,1) -> 318 | G59: 435 | H59: 225.2 | I59: 224.3 | J59: 226.5 | K59: 224 | L59: 224.4 | M59: –
A60: Hungary | B60: – | C60: – | D60: – | E60: – | F60: – | G60: – | H60: – | I60: – | J60: – | K60: 699.9 | L60: – | M60: –
A61: Germany | B61: 661.4 | C61: 887.4 | D61: 952.2 | E61: 790.1 | F61: =ROUND(731.396,1) -> 731.4 | G61: 481.8 | H61: 716.9 | I61: 2342.2 | J61: 1123.7 | K61: 753.4 | L61: 978.1 | M61: 932.6
A62: The Netherlands | B62: – | C62: – | D62: – | E62: – | F62: – | G62: – | H62: – | I62: – | J62: – | K62: 405.4 | L62: 1129.8 | M62: 1981.3
A63: Serbia | B63: – | C63: – | D63: – | E63: – | F63: – | G63: – | H63: 34.3 | I63: 145.7 | J63: 67.5 | K63: 0.5 | L63: 12 | M63: 0.5
A64: France | B64: – | C64: – | D64: – | E64: 273.9 | F64: =ROUND(248.515,1) -> 248.5 | G64: 299.7 | H64: – | I64: – | J64: – | K64: – | L64: – | M64: –
A65: Czech Republic | B65: – | C65: – | D65: – | E65: – | F65: – | G65: – | H65: – | I65: – | J65: – | K65: – | L65: – | M65: 104.5
A66: Total withdrawal (far abroad countries) | B66: =SUM(B58:B65) -> 861.4 | C66: =SUM(C58:C65) -> 1458.6 | D66: 2027.4 | E66: 1673.4 | F66: 1778 | G66: 1760.2 | H66: 1959 | I66: 4246.3 | J66: 2589.3 | K66: 2919 | L66: 3164.3 | M66: 4427.2
A67: Total for the season | B67: 1845.5 | C67: 1749.7 | D67: 2379.7 | E67: 2436.2 | F67: 2811.2 | G67: 3439.9 | H67: 4399.4 | I67: 6516.2 | J67: 4787.5 | K67: 5333.7 | L67: 5247.4 | M67: 6411.6
A68: * Excluding volumes sold in UGSFs.
A69: ** Gas withdrawal of Gazprom Group for contracts of OOO Gazprom Export.
